{"text_format":"1","workbook":"xlsx","n_sheets":12,"sheets":["Start & resultat","A. Byggnadsinfo med BBR","B1. Resultat beräkning","B2. Indata beräkning","PETberäkning","UHM","VFT","C1. Resultat mätning","C2. Inmatning och verifiering","C3. Normaliseringsunderlag","C4. Underlag-mätplan","Fgeo"],"not_rendered":{"charts":4,"images":21,"macros":0,"external_links":0,"defined_names":21,"comments":11,"pivot_tables":0},"unopened":[],"bounds":{"document_bytes":16777216,"sheet_cells":100000,"rows_first":2000,"rows_last":500,"rows_between":2000,"halvings":0,"cell_chars":16384,"cell_head_chars":4096},"cells_cut":0,"cells_raw":0,"read":"whole","date_system":"1900"}

{"sheet":"Start & resultat","index":0,"n_rows":51,"n_cols":9,"rows_kept":51,"cut":false,"hidden":false,"merged":[[0,2,0,7],[39,2,39,4],[41,2,41,4],[24,8,34,8],[36,2,36,4],[37,2,37,4],[38,2,38,4],[1,1,1,8],[3,1,3,7],[7,2,7,3],[8,2,8,3],[17,2,18,2],[8,4,8,7],[16,8,21,8],[6,2,6,3],[17,3,18,3],[10,8,13,8],[17,5,18,5],[17,6,18,6],[5,2,5,3],[4,2,4,3],[17,4,18,4],[16,3,16,6]]}
[null,"                                 ","Energihjälpen energispar – Formulär för granskning och verifiering av energiprestanda vid energirenovering av byggnader"]
[null,"Detta formulär är tänkt som ett sammanställt gransknings-, uppföljnings- och verifieringsunderlag att fyllas i av byggherren med hjälp av de som utför energiberäkning, projektering och mätning, ingå i kontrollplanen och bifogas vid redovisning inför startbesked, eller i ett något senare skede. Formuläret uppdateras inför genomgång inför slutbesked med de ändringar som skett under processens gång. Det är även ett underlag för verifiering av energikraven i energideklarationen, genom mätning eller beräkning."]
[]
[null,"Sammanfattning energikrav och kravuppfyllelse",null,null,null,null,null,null,"Projektspecifika anteckningar"]
[null,"Byggnads- och fastighetsbeteckning",{"$f":"'A. Byggnadsinfo med BBR'!C9","v":0}]
[null,"Byggnadskategori (-er)",{"$f":"'A. Byggnadsinfo med BBR'!C13","v":0}]
[null,"Kommun",{"$f":"  Kommun","v":0}]
[null,"BBR-version",{"$f":"'A. Byggnadsinfo med BBR'!D50","v":29}]
[null,null,"Referens före åtgärd",null,"Efter renovering"]
[null,null,"Uppmätt och normaliserat","Beräknat","Beräknat","Verifierat genom mätning","Beräknad energi-besparing, %"," Uppmätt energi-besparing, %"]
[null,"Primärenergital, EPPET  kWh/m2Atemp",{"$f":"IFERROR(IF(C8=29,PETberäkning!M10,PETberäkning!M17),0)","v":0},{"$f":"IF(C8=29,PETberäkning!K10,PETberäkning!K17)","v":0},{"$f":"IF(C8=29,PETberäkning!L10,PETberäkning!L17)","v":0},{"$f":"IFERROR(IF(C8=29,PETberäkning!N10,PETberäkning!N17),0)","v":0},{"$f":"IF(D11=0,0,(E11-D11)/D11*100)","v":0},{"$f":"IF(C11=0,0,(F11-C11)/C11*100)","v":0}]
[null,"Energiklass",{"$f":"IFERROR(IF(C11/'A. Byggnadsinfo med BBR'!D59<=0.5,\"A\", IF(C11/'A. Byggnadsinfo med BBR'!D59<=0.75,\"B\", IF(C11/'A. Byggnadsinfo med BBR'!D59<=1,\"C\",IF(C11/'A. Byggnadsinfo med BBR'!D59<=1.35,\"D\",IF(C11/'A. Byggnadsinfo med BBR'!D59<=1.8,\"E\",IF(C11/'A. Byggnadsinfo med BBR'!D59<=2.35,\"F\",\"G\")))))),0)","v":0},{"$f":"IFERROR(IF(D11/'A. Byggnadsinfo med BBR'!D59<=0.5,\"A\", IF(D11/'A. Byggnadsinfo med BBR'!D59<=0.75,\"B\", IF(D11/'A. Byggnadsinfo med BBR'!D59<=1,\"C\",IF(D11/'A. Byggnadsinfo med BBR'!D59<=1.35,\"D\",IF(D11/'A. Byggnadsinfo med BBR'!D59<=1.8,\"E\",IF(D11/'A. Byggnadsinfo med BBR'!D59<=2.35,\"F\",\"G\")))))),0)","v":0},{"$f":"IFERROR(IF(E11/'A. Byggnadsinfo med BBR'!E59<=0.5,\"A\", IF(E11/'A. Byggnadsinfo med BBR'!E59<=0.75,\"B\", IF(E11/'A. Byggnadsinfo med BBR'!E59<=1,\"C\",IF(E11/'A. Byggnadsinfo med BBR'!E59<=1.35,\"D\",IF(E11/'A. Byggnadsinfo med BBR'!E59<=1.8,\"E\",IF(E11/'A. Byggnadsinfo med BBR'!E59<=2.35,\"F\",\"G\")))))),0)","v":0},{"$f":"IFERROR(IF(F11/'A. Byggnadsinfo med BBR'!E59<=0.5,\"A\", IF(F11/'A. Byggnadsinfo med BBR'!E59<=0.75,\"B\", IF(F11/'A. Byggnadsinfo med BBR'!E59<=1,\"C\",IF(F11/'A. Byggnadsinfo med BBR'!E59<=1.35,\"D\",IF(F11/'A. Byggnadsinfo med BBR'!E59<=1.8,\"E\",IF(F11/'A. Byggnadsinfo med BBR'!E59<=2.35,\"F\",\"G\")))))),0)","v":0}]
[null,"Um, W/m2K",null,{"$f":"'B2. Indata beräkning'!C29","v":0},{"$f":"'B2. Indata beräkning'!F29","v":0},"     ","     ","     "]
[null,"Specifik energianvändning, kWh/m2Atemp ",{"$f":"PETberäkning!M24","v":0},{"$f":"PETberäkning!K24","v":0},{"$f":"PETberäkning!L24","v":0},{"$f":"PETberäkning!N24","v":0},{"$f":"IF(D14=0,0,(E14-D14)/D14*100)","v":0},{"$f":"IF(C14=0,0,(F14-C14)/C14*100)","v":0}]
[]
[null,"Upphandlingsmyndighetens (UHMs) frivilliga tilläggskrav",null,null,null,null,null,null,"Projektspecifika anteckningar"]
[null,null,"UHM-krav","UHM-kravuppfyllelse"]
[null,null,null,"Inför startbesked","Inför byggstart","Inför slutbesked","Verifierat genom mätning"]
[]
[null,"Nettovärmeenergi (UHM 1A), kWh/m2 Atemp",null,{"$f":"UHM!D15","v":0},{"$f":"UHM!E15","v":0},{"$f":"UHM!F15","v":0},{"$f":"UHM!G15","v":0}]
[null,"Energianvändning (UHM 1B), W/m2 Atemp",null,{"$f":"UHM!D29","v":0},{"$f":"UHM!E29","v":0},{"$f":"UHM!F29","v":0},{"$f":"UHM!G29","v":0}]
[null,"Värmeförlusttal (VFT), W/m2Atemp",null,{"$f":"VFT!C18","v":0},{"$f":"VFT!D18","v":0},{"$f":"VFT!E18","v":0},{"$f":"VFT!J13","v":0}]
[]
[null,"Redovisning Energiavtal 21",null,null,null,null,null,null,"Projektspecifika anteckningar"]
[null,"Mätperiod (12 månader):",1,2,3]
[]
[null,"Avtalat energikrav, primärenergital",null,null,null," kWh/m2 Atemp"]
[]
[null,"Avtalat energivite, Energiavtal 21",null,null,null," SEK/kWh"]
[]
[null,"Energiprestanda som specifik energianvändning",{"$f":"IFERROR(IF('C1. Resultat mätning'!J39>0,'C1. Resultat mätning'!J39,'C1. Resultat mätning'!I39),0)","v":0},{"$f":"IFERROR(IF('C1. Resultat mätning'!J56>0,'C1. Resultat mätning'!J56,'C1. Resultat mätning'!I56),0)","v":0},{"$f":"IFERROR(IF('C1. Resultat mätning'!J73>0,'C1. Resultat mätning'!J73,'C1. Resultat mätning'!I73),0)","v":0}," kWh/m2 Atemp"]
[null,"Energiprestanda som primärenergital",{"$f":"IFERROR(IF(C8=29,PETberäkning!M10,PETberäkning!M17),0)","v":0},{"$f":"IFERROR(IF(C8=29,PETberäkning!N10,PETberäkning!N17),0)","v":0},{"$f":"IFERROR(IF(C8=29,PETberäkning!O10,PETberäkning!O17),0)","v":0}," kWh/m2 Atemp"]
[null,"Avvikelse",{"$f":"C32-C27","v":0},{"$f":"D32-D27","v":0},0," kWh/m2 Atemp"]
[]
[null,"Summa energivite",{"$f":"IF(C33>0,C33*C29*'A. Byggnadsinfo med BBR'!$E$43,0)","v":0},{"$f":"IF(D33>0,D33*D29*'A. Byggnadsinfo med BBR'!$E$43,0)","v":0},{"$f":"IF(E33>0,E33*E29*'A. Byggnadsinfo med BBR'!$E$43,0)","v":0}," SEK"]
[]
[null,"Byggherre / Beställare",null,null,null,null,null,"Entreprenör"]
[null,"Kontaktperson",null,null,null,null,null,"Kontaktperson"]
[null,"Adress",null,null,null,null,null,"Adress"]
[null,"E-post, tel.",null,null,null,null,null,"E-post, tel."]
[]
[]
[]
[null,"Ort och datum","Underskrift",null,null,"Namnförtydligande"]
[]
[null,null,null,null,null,null,null,"Bilagor:"]
[]
[]
[]
[]
[null,"Energihjälpen – Formulär för granskning och verifiering av energiprestanda för byggnader"]

{"sheet":"A. Byggnadsinfo med BBR","index":1,"n_rows":121,"n_cols":20,"rows_kept":121,"cut":false,"hidden":false,"merged":[[48,6,48,9],[38,6,38,9],[39,6,39,9],[40,6,40,9],[31,17,32,17],[31,16,32,16],[46,6,46,9],[47,6,47,9],[31,13,32,13],[31,14,32,14],[31,15,32,15],[41,6,41,9],[42,6,42,9],[43,6,43,9],[44,6,44,9],[45,6,45,9],[4,1,4,2],[4,5,4,12],[31,10,32,10],[31,11,32,11],[31,12,32,12],[27,3,27,4],[31,6,31,9],[32,6,32,9],[27,9,27,12],[46,10,46,16],[33,6,33,9],[34,6,34,9],[35,6,35,9],[36,6,36,9],[37,6,37,9]]}
[]
[null,null,"Byggnadsinfo och BBR-underlag"]
[]
[]
[null,"Byggnaden - Identifikation och egenskaper",null,null,null,"Sammanställning installationer och mätning"]
[null,"Välj kommun (även för Fgeo)",null,null,null,"Värmesystem:"]
[null,"Fastighetsägare",null,null,null,null,null,null,"Välj bränsle 1",null,null,"Välj bränsle 2"]
[null,"Fastighetsbeteckning",null,null,null,null,null,null,"Välj typ av VP","Berg"]
[null,"Egen beteckning",null,null,null,null,null,null,null,null,"m2"]
[null,"Byggnads-ID / UUID ",null,null,null,"Övrig värme:"]
[null,"Huvudadress och postnummer","     "]
[null,"Adress och postnummer","     "]
[null,"Välj byggnadskategori"]
[null,"Byggnadens komplexitet, välj",null,null,null,"Tappvarmvatten:"]
[null,"Välj byggnadstyp",null,null,null,null,null,null,"Välj bränsle 1",null,null,"Välj bränsle 2"]
[null,"Nybyggnadsår",null,null,null,"     ",null,null,"Välj typ av VP","Berg"]
[null,"Avarmgarage",null,"m2"]
[null,"Akallgarage","     ","m2"]
[null,"Antal våningsplan ovan mark",null,null,null,"Kylsystem:"]
[null,"Antal källarplan","     "]
[null,"Antal trapphus","     ",null,"     "]
[null,"Antal lägenheter","     ",null,null,"Elsystem:",null,null,null,null,"m2"]
[null,"Installerad eleffekt för komfortkyla, kW",null,null,null,"Ventilation:"]
[null,null,"Inst. eleffekt för uppvärmning, W/m2Atemp",{"$f":"'B1. Resultat beräkning'!D23","v":0},{"$f":"'B1. Resultat beräkning'!F23","v":0}]
[null,null,"Elvärmd byggnad, J/N",{"$f":"IF(D24>=10,\"J\",\"N\")","v":"N"},{"$f":"IF(E24>=10,\"J\",\"N\")","v":"N"},null,null,null,"Energiverkningsgrad",null,"%"]
[]
[null,"Byggnaden – Verksamheter och areor"]
[null,null,null,"Ange m2 Atemp"]
[null,null,null,"Före","Efter"]
[null,null,"Bostäder (inkl. biarea, t.ex. trapphus och uppvärmd källare)",null,null,null,"C2. Mätplan"]
[null,null,"Hotell, pensionat och elevhem",null,null,null,"Följande mätpunkter installeras och kommer att kunna följas upp per byggnad. Sätt kryss för de mätare som ingår (alla energibärare ska mätas)."]
[null,null,"Restaurang",null,null,null,"                              Energibärare",null,null,null,"Fjärrvärme","El, direkt","El, värmepump","El, kylmaskin","Fjärrkyla","Bio-bränsle","Olja och gas","Anm."]
[null,null,"Kontor och förvaltning",null,null,null,"Energipost"]
[null,null,"Butiks- och lagerlokaler för livsmedelshandel",null,null,null,"Debiteringsmätare"]
[null,null,"Butiks- och lagerlokaler för övrig handel",null,null,null,"Verifieringsmätare:"]
[null,null,"Köpcentrum",null,null,null,"Uppvärmning  exkl. tappvarmvatten och VVC",null,null,null,null,"     ","     ","     ",null,"     "]
[null,null,"Vård, dygnet runt",null,null,null,"Tappvarmvatten ",null,null,null,null,"     ",null,"     ",null,"     "]
[null,null,"Vård, dagtid (samt serviceboende, frisersalong o. dyl)",null,null,null,"VVC-förluster"]
[null,null,"Skolor (förskola-universitet)",null,null,null,"Övriga kulvertförluster"]
[null,null,"Bad-, sport-, idrottsanläggningar (ej utomhusarenor)",null,null,null,"Komfortkyla",null,null,null,null,"     ","     ","     ",null,"     "]
[null,null,"Teater-, konsert-, biograflokaler och övriga samlingslokaler",null,null,null,"Fastighetsenergi",null,null,null,null,null,"     ","     ",null,"     ",null,null,null,"Utveckling?"]
[null,null,"Övrig verksamhet i lokaler",null,null,null,"Avloppsvärmeväxlare  ",null,null,null,null,"     ","     ","     ",null,"     ",null,null,null," Eventuellt tillägg med kulvertförluster vid flera byggnader på en fastighet"]
[null,null,"Total area",{"$f":"SUM(D30:D42)","v":0},{"$f":"SUM(E30:E42)","v":0},"m2 Atemp","Solfångare",null,null,null,null,"     ","     ","     ",null,"     ",null,null,null,"Kan kryssen styra vilka kolumner som visas i inmatningen av mätvärden?"]
[null,null,"Varav andel lokaler",{"$f":"IF(D43=0,0,SUM(D31:D42)/D43*100)","v":0},{"$f":"IF(E43=0,0,SUM(E31:E42)/E43*100)","v":0},"%","Solceller ",null,null,null,null,"     ","     ","     ",null,"     ",null,null,null," Beskriv hur ev. kulvertförluster ska hanteras."]
[null,null,"Varav andel bostäder",{"$f":"IF(D43=0,0,D30/D43*100)","v":0},{"$f":"IF(E43=0,0,E30/E43*100)","v":0},"%","Verksamhetsenergi",null,null,null,null,"     ","     ","     ",null,"     ",null,null,null," Skilja på värme till aggregat och radiatorer?"]
[null,null,null,null,null,null,"Hushållsenergi",null,null,null,null,"     ","     ","     ",null,"     ",null,null,null," Lägga till tidsupplösning, automatisering m.m."]
[null,null,null,null,null,null,"Inomhustemperatur för ev. normalisering",null,null,null,null,null,null,null,null,null,null,null,null,"Bekräfta mätplan i verifieringen."]
[null,"Underlag till energikrav enligt BBR",null,null,null,null,"Övriga mätare",null,null,null,null,null,null,"     ",null,"     ",null,null,null,"Anm. Nätägaren för el behöver medvetandegöras om BEN, för att möjliggöra mätning av summa hushålls- och verksamhetsel per byggnad."]
[null,null,null,{"$f":"D29","v":"Före"},{"$f":"E29","v":"Efter"},null,"Kommentar:",null,null,null,null,null,null,"     ",null,"     "]
[null,null,"Välj BBR-version",29,{"$f":"D50","v":29},null,null,"Kontrollfrågor:"]
[null,null,"Fgeo",{"$f":"VLOOKUP(C6,Tabell1[],2)","v":{"$error":"#N/A"}},{"$f":"D51","v":{"$error":"#N/A"}},null,null,"Är energimätningen av byggnaden avgränsad enligt BBR? (Så byggnaden och dess fastighetsenergi kan skiljas från verksamhetsenergi, Dvs. ev. utvändig el, motorvärmare, billaddare, tvättstugor mm mäts av)"]
[null,null,"Atemp lokal",{"$f":"D44/100*D43","v":0},{"$f":"E44/100*E43","v":0},"m2 Atemp",null,"Är verksamhets- och hushållsenergi skild från fastighetsenergi?"]
[null,null,"Atemp bostad",{"$f":"D45/100*D43","v":0},{"$f":"E45/100*E43","v":0},"m2 Atemp"]
[null,null,"Andel Atemp med lgh ≤ 35 m2 boyta",null,{"$f":"D54","v":0},"%",null,"Beräkningshjälp för personbaserat genomsnittligt hygieniskt luftflöde"]
[null,null,"Hygieniskt genomsnittligt ventilationsflöde, qm",null,{"$f":"D55","v":0},"l/sm2",null,"i lokaler (underlag för ventilationstillägg):"]
[null,null,"Primärenergital:",null,null,null,null,null,null,null,{"$f":"D43*D44/100","v":0},"m2 lokal"]
[null,null,"BBR-krav lokal",{"$f":"IF(D50=25,H68+K68,H67+K67)","v":56},{"$f":"IF(E50=25,H68+K68,H67+K67)","v":56},"kWh/m2Atemp",null,null,null,"Antal personer (för uteluftflödet)",null,"st"]
[null,null,"BBR-krav flerbostadshus",{"$f":"IF(D50=25,G68+J68,G67+J67)","v":75},{"$f":"IF(E50=25,G68+J68,G67+J67)","v":75},"kWh/m2Atemp",null,null,null,"Hygieniskt minimiuteluftflöde",{"$f":"IF(K56>0,(K57*7+K56*0.35)/K56,0)","v":0},"l/s,m2Atemp"]
[null,null,"Viktat BBR-krav",{"$f":"(D44*D57+D45*D58)/100","v":0},{"$f":"(E44*E57+E45*E58)/100","v":0},"kWh/m2Atemp",null,null,null,"Uteluftsflöde vid närvaro",null,"l/s,m2Atemp"]
[null,null,"Um:",null,null,null,null,null,null,"Ventilationens drifttid en vecka",null,"timmar"]
[null,null,"BBR-krav lokal",{"$f":"IF(D50=25,H72,H71)","v":0.5},{"$f":"IF(E50=25,H72,H71)","v":0.5},"W/m2K",null,null,null,"Uteluftsflöde utanför närvarotid",null,"l/s,m2Atemp"]
[null,null,"BBR-krav flerbostadshus",{"$f":"IF(D50=25,G72,G71)","v":0.4},{"$f":"IF(E50=25,G72,G71)","v":0.4},"W/m2K",null,null,null,"Genomsnittligt hygieniskt uteluftsflöde, qm",{"$f":"(K59*K60+K61*(168-K60))/168","v":0},"l/s,m2Atemp"]
[null,null,"Viktat BBR-krav",{"$f":"(D44*D61+D45*D62)/100","v":0},{"$f":"(E44*E61+E45*E62)/100","v":0},"W/m2K",null,"Instruktion behövs för qm, speciellt vid VAV-system. Bättre beräkningshjälp med flera zoner ?"]
[]
[null,null,null,"Baskrav",null,null,null,null,"Tillägg"]
[null,null,"Uträkning av BBR-krav för olika byggnadskategorier och storlekar","Småhus >50-90 m2","Småhus >90-130 m2","Småhus >130 m2","Flerbos-tadshus >50 m2","Lokaler >50 m2","Småhus >50 m2","Flerbos-tadshus >50 m2","Lokaler >50 m2"]
[null,null,"BBR 29, Energiprestanda",100,95,90,75,70,null,{"$f":"IF(D54>50,40*(D55-0.35),0)","v":0},{"$f":"40*(D55-0.35)","v":-14},"kWh/m2Atemp"]
[null,null,"BBR 25, Energiprestanda",90,90,90,85,80,null,{"$f":"IF(D54>50,70*(D55-0.35),0)","v":0},{"$f":"70*(D55-0.35)","v":-24.5},"kWh/m2Atemp"]
[null,null,"BBR 29, Installerad eleffekt",{"$f":"4.5+IF($D$51<1,0,1.7*($D$51-1))","v":{"$error":"#N/A"}},{"$error":"#N/A"},{"$error":"#N/A"},{"$error":"#N/A"},{"$error":"#N/A"},{"$f":"IF(D51<1,(0.025)*(D53-130),(0.025+0.02*(D51-1))*(D53-130))","v":{"$error":"#N/A"}},{"$f":"IF(D51<1,0.025*(D53-130)+0.022*(D55-0.35)*D53,(0.025+0.02*(D51-1))*(D53-130)+(0.022+0.02*(D51-1))*(D55-0.35)*D53)","v":{"$error":"#N/A"}},{"$f":"IF(D51<1,0.025*(D52-130)+0.022*(D55-0.35)*D52,(0.025+0.02*(D51-1))*(D52-130)+(0.022+0.02*(D51-1))*(D55-0.35)*D52)","v":{"$error":"#N/A"}},"kW"]
[null,null,"BBR 25. Installerad eleffekt",{"$error":"#N/A"},{"$error":"#N/A"},{"$error":"#N/A"},{"$error":"#N/A"},{"$error":"#N/A"},{"$f":"IF(D51<1,(0.025)*(D53-130),(0.025+0.02*(D51-1))*(D53-130))","v":{"$error":"#N/A"}},{"$f":"IF(D51<1,0.025*(D53-130)+0.022*(D55-0.35)*D53,(0.025+0.02*(D51-1))*(D53-130)+(0.022+0.02*(D51-1))*(D55-0.35)*D53)","v":{"$error":"#N/A"}},{"$f":"IF(D51<1,0.025*(D52-130)+0.022*(D55-0.35)*D52,(0.025+0.02*(D51-1))*(D52-130)+(0.022+0.02*(D51-1))*(D55-0.35)*D52)","v":{"$error":"#N/A"}},"kW"]
[null,null,"BBR 29, Um",0.3,0.3,0.3,0.4,0.5,null,null,null,"W/m2K"]
[null,null,"BBR 25, Um",0.4,0.4,0.4,0.4,0.6,null,null,null,"W/m2K"]
[]
[]
[null,"Energikrav enligt BBR 29:",null,null,null,"Energikrav enligt BBR 25:"]
[]
[]
[]
[]
[]
[]
[]
[]
[]
[]
[]
[]
[]
[]
[]
[]
[]
[]
[]
[]
[]
[]
[]
[]
[null,"1) Tillägg får göras med (0,025 + 0,02 x (Fgeo -1)) x (Atemp – 130) då Atemp är större än 130 m2. ",null,null,null,"1) Tillägg får göras med (0,025 + 0,02(Fgeo -1)) x (Atemp – 130) då Atemp är större än 130 m2. Om "]
[null,"Om den geografiska justeringsfaktorn Fgeo är mindre än 1,0 sätts den till 1,0 vid beräkning av ",null,null,null,"den geografiska justeringsfaktorn Fgeo är mindre än 1,0 sätts den till 1,0 vid beräkning av "]
[null,"installerad eleffekt. ",null,null,null,"installerad eleffekt. "]
[null,"2) Tillägg får göras med 40 x (qmedel – 0,35) då uteluftsflödet i temperaturreglerade utrymmen av ",null,null,null,"2) Tillägg får göras med 70 x (qmedel – 0,35) då uteluftsflödet i temperaturreglerade utrymmen av "]
[null,"utökade hygieniska skäl är större än 0,35 l/s per m2, där qmedel är det genomsnittliga specifika ",null,null,null,"utökade hygieniska skäl är större än 0,35 l/s per m2, där qmedel är det genomsnittliga specifika "]
[null,"uteluftsflödet under uppvärmningssäsongen och får högst tillgodoräknas upp till 1,00 l/s per ",null,null,null,"uteluftsflödet under uppvärmningssäsongen och får högst tillgodoräknas upp till 1,00 l/s per "]
[null,"m2. ",null,null,null,"m2. "]
[null,"3) Tillägg får göras med (0,022 + 0,02 x (Fgeo -1)) x (q – 0,35)Atemp då uteluftsflödet av utökade ",null,null,null,"3) Tillägg får göras med (0,022 + 0,02(Fgeo -1)) x (q – 0,35)Atemp då uteluftsflödet av utökade "]
[null,"kontinuerliga hygieniska skäl är större än 0,35 l/s per m2 i temperaturreglerade utrymmen. Där ",null,null,null,"kontinuerliga hygieniska skäl är större än 0,35 l/s per m2 i temperaturreglerade utrymmen. "]
[null,"q är det maximala specifika uteluftsflödet vid DVUT. Om den geografiska justeringsfaktorn ",null,null,null,"Där q är det maximala specifika uteluftsflödet vid DVUT. Om den geografiska justerings-"]
[null,"Fgeo är mindre än 1,0 sätts den till 1,0 vid beräkning av installerad eleffekt. ",null,null,null,"faktorn Fgeo är mindre än 1,0 sätts den till 1,0 vid beräkning av installerad eleffekt. "]
[null,"4) Tillägg får göras med 40 x (qmedel – 0,35) i flerbostadshus där Atemp är 50 m2 eller större och ",null,null,null,"4) Tillägg får göras med 70(qmedel – 0,35) i flerbostadshus där Atemp är 50 m2 eller större och "]
[null,"som till övervägande delen (>50 % Atemp) innehåller lägenheter med en boarea om högst ",null,null,null,"som till övervägande delen (>50 % Atemp) innehåller lägenheter med en boarea om högst "]
[null,"35 m2 vardera och qmedel är uteluftsflödet i temperaturreglerade utrymmen överstiger 0,35 l/s ",null,null,null,"35 m2 vardera och qmedel är uteluftsflödet i temperaturreglerade utrymmen överstiger 0,35 l/s "]
[null,"per m2. Tillägget kan enbart användas på grund av krav på ventilation i särskilda utrymmen ",null,null,null,"per m2. Tillägget kan enbart användas på grund av krav på ventilation i särskilda utrymmen "]
[null,"som badrum, toalett och kök och får högst tillgodoräknas upp till 0,6 l/s per m2. ",null,null,null,"som badrum, toalett och kök. "]
[null,"5) Tillägg får göras med (0,022 + 0,02 x (Fgeo -1)) x (q – 0,35)Atemp i flerbostadshus där Atemp är ",null,null,null,"5) Tillägg får göras med (0,022 + 0,02(Fgeo -1)) x (q – 0,35)Atemp i flerbostadshus där Atemp är "]
[null,"50 m2 eller större och som till övervägande delen (>50 % Atemp) innehåller lägenheter med en ",null,null,null,"50 m2 eller större och som till övervägande delen (>50 % Atemp) innehåller lägenheter med en "]
[null,"boarea om högst 35 m2 vardera. Tillägget kan enbart användas då det maximala uteluftsflödet ",null,null,null,"boarea om högst 35 m2 vardera. Tillägget kan enbart användas då det maximala utelufts-"]
[null,"vid DVUT i temperaturreglerade utrymmen q överstiger 0,35 l/s per m2 på grund av krav på ",null,null,null,"flödet vid DVUT i temperaturreglerade utrymmen q överstiger 0,35 l/s per m2 på grund av "]
[null,"ventilation i särskilda utrymmen som badrum, toalett och kök. Om den geografiska ",null,null,null,"krav på ventilation i särskilda utrymmen som badrum, toalett och kök. Om den geografiska "]
[null,"justeringsfaktorn Fgeo är mindre än 1,0 sätts den till 1,0 vid beräkning av installerad eleffekt. ",null,null,null,"justeringsfaktorn Fgeo är mindre än 1,0 sätts den till 1,0 vid beräkning av installerad eleffekt."]

{"sheet":"B1. Resultat beräkning","index":2,"n_rows":49,"n_cols":7,"rows_kept":49,"cut":false,"hidden":false,"merged":[[11,1,11,2],[12,1,12,2],[13,1,13,2],[10,1,10,2],[1,1,1,5],[2,1,2,2],[4,1,4,2],[5,1,5,2],[6,1,6,2],[7,1,7,2],[9,1,9,2],[8,1,8,2],[22,1,22,2],[14,1,14,2],[15,1,15,2],[16,1,16,2],[17,1,17,2],[18,1,18,2],[19,1,19,2],[20,1,20,2],[21,1,21,2]]}
[null,null,"                            Beräkningsresultat för helår utan viktningsfaktorer"]
[null,"B1. Beräknad energianvändning enl. BEN, kWh/m2Atemp samt installerad eleffekt",null,null,null,null,"Projektspecifika anteckningar"]
[null,"Uppdelat beräkningsresultat (utdata)",null,"Beräknat före åtgärd","Uppdaterat inför byggstart (frivilligt) ","Beräknat efter åtgärd"]
[null,null,null,"kWh/m2Atemp","kWh/m2Atemp","kWh/m2Atemp"]
[null,"Uppvärmning    (enligt BBR) "]
[null,"….varav VVC-förluster (totala) och stilleståndsförlust "]
[null,"      ….varav distributionsförlust för värme"]
[null,".…varav avdrag på uppvärmning för lokalt producerad förnybar energi (solvärme m.m.)"]
[null,"….varav komfortgolvvärme med el i badrum"]
[null,"Vädringspåslag"]
[null,"Normalt tappvarmvatten  för byggnaden."]
[null,"Komfortkyla, el"]
[null,"….varav distributionsförlust för komfortkyla med el"]
[null,"Komfortkyla, fjärrkyla"]
[null,"      ….varav distributionsförlust för komfortfjärrkyla"]
[null,"Fastighetsenergi – el (efter avdrag för solceller)"]
[null,"….varav el från solceller som inte tidigare dragits av"]
[null,"Fastighetsenergi  - övrig",null,"     ","     "]
[null,"Övergripande säkerhetsmarginal enligt BEN (utöver vad som ingår i vädring och förluster ovan)"]
[null,"Beräknad specifik energianvändning, kWh/m2Atemp."]
[null,"Antagen indata på verksamhetsenergi och hushållsenergi",null,null,"     "]
[null,"Utvändig el som inte ingår",null,"     ","     "]
[null,"Beräknad eleffekt för uppvärmning, W/m2Atemp"]
[]
[null,"Beräkningsresultat i kWh uppdelat per energibärare (underlag för beräkning av primärenergital)."]
[null,null,null,{"$f":"D3","v":"Beräknat före åtgärd"},{"$f":"E3","v":"Uppdaterat inför byggstart (frivilligt) "},{"$f":"F3","v":"Beräknat efter åtgärd"}]
[null,null,null,"kWh","kWh","kWh"]
[null,null,"Uppvärmning, el"]
[null,null,"Uppvärmning, fjv"]
[null,null,"Uppvärmning, bio"]
[null,null,"Uppvärmning, olja & gas"]
[null,null,"VVC, el"]
[null,null,"VVC, fjv"]
[null,null,"VVC, bio"]
[null,null,"VVC, olja & gas"]
[null,null,"Tappvv, el"]
[null,null,"Tappvv, fjv"]
[null,null,"Tappvv, bio"]
[null,null,"Tappvv, olja & gas"]
[null,null,"Komfortkyla, el"]
[null,null,"Komfortkyla, fjk"]
[null,null,"Komfortkyla, fjv"]
[null,null,"Komfortkyla, bio"]
[null,null,"Komfortkyla, olja & gas"]
[null,null,"Fastighetsenergi, el"]
[null,null,"Fastighetsenergi, fjv"]
[null,null,"Fastighetsenergi, bio"]
[null,null,"Fastighetsenergi, olja & gas"]
[null,null,"Summa",{"$f":"SUM(D28:D48)","v":0},{"$f":"SUM(E28:E48)","v":0},{"$f":"SUM(F28:F48)","v":0}]

{"sheet":"B2. Indata beräkning","index":3,"n_rows":90,"n_cols":10,"rows_kept":90,"cut":false,"hidden":false,"merged":[[33,1,33,7],[66,1,66,6],[2,1,2,7],[3,2,3,4],[3,5,3,7],[38,2,38,4],[39,2,39,4],[40,2,40,4],[35,5,35,7],[36,5,36,7],[37,5,37,7],[38,5,38,7],[39,5,39,7],[47,2,47,4],[34,2,34,4],[34,5,34,7],[35,2,35,4],[36,2,36,4],[37,2,37,4],[43,5,43,7],[44,5,44,7],[44,2,44,4],[40,5,40,7],[43,2,43,4],[45,2,45,4],[46,2,46,4],[48,8,49,8],[48,1,49,1],[67,2,67,4],[67,5,67,7],[52,5,52,7],[52,2,52,4],[48,2,49,4],[48,5,49,7],[51,1,51,7],[45,5,45,7],[46,5,46,7],[47,5,47,7]]}
[null,null,"Beräkningsindata och klimatskärmsdata"]
[]
[null,"B2.   Data för klimatskärm – U-medelvärde och luftläckning",null,null,null,null,null,null,"Projektspecifika anteckningar"]
[null,null,"Före åtgärd",null,null,"Efter renovering"]
[null,"Konstruktionsdelar","U-värde, W/m2K","Area, m2","U*A, W/K","U-värde, W/m2K","Area, m2",{"$f":"E5","v":"U*A, W/K"}]
[null,"Tak/vindsbjälklag 1",null,null,{"$f":"C6*D6","v":0},null,null,{"$f":"F6*G6","v":0}]
[null,"Tak/vindsbjälklag 2",null,null,0,null,null,{"$f":"F7*G7","v":0}]
[null,"Yttervägg ovan mark 1",null,null,0,null,null,{"$f":"F8*G8","v":0}]
[null,"Yttervägg ovan mark 2",null,null,0,null,null,0]
[null,"Yttervägg under mark",null,null,0,null,null,0]
[null,"Golv/grund",null,null,0,null,null,0]
[null,"Fönster 1",null,null,0,null,null,0]
[null,"Fönster 2",null,null,0,null,null,0]
[null,"Dörrar",null,null,0,null,null,0]
[null,"Portar",null,null,0,null,null,0,null,"Areor mot delvis uppvärmt utrymme och garage."]
[null,"Övrigt",null,null,0,null,null,0,null,"Rimliga intervaller omfattar…"]
[null,"Area Aom och summa U*A","-",{"$f":"SUM(D6:D16)","v":0},{"$f":"SUM(E6:E16)","v":0},null,{"$f":"SUM(G6:G16)","v":0},{"$f":"SUM(H6:H16)","v":0}]
[null,"Köldbryggor","Ψ- värde W/m,K","Längd, m","Χ-värde, W/K",{"$f":"C18","v":"Ψ- värde W/m,K"},{"$f":"D18","v":"Längd, m"},{"$f":"E18","v":"Χ-värde, W/K"}]
[null,"Bottenbjälklag-yttervägg",null,null,{"$f":"C19*D19","v":0},null,null,{"$f":"F19*G19","v":0}]
[null,"Bjälklagskanter",null,null,0,null,null,{"$f":"F20*G20","v":0}]
[null,"Balkongkanter",null,null,0,null,null,0]
[null,"Vindsbjälklag-yttervägg",null,null,0,null,null,0]
[null,"Fönster- och dörrsmygar",null,null,0,null,null,0]
[null,"Ytterhörn (vertikalt)",null,null,0,null,null,0]
[null,"Övriga linjeköldbryggor",null,null,0,null,null,0]
[null,"Punktinfästningar"]
[null,"Summa Psi*l",null,null,{"$f":"SUM(E19:E26)","v":0},null,null,{"$f":"SUM(H19:H26)","v":0}]
[]
[null,"Resulterande Um-värde,   W/m2K ",{"$f":"IF(D17=0,0,(E17+E27)/D17)","v":0},"  ",null,{"$f":"IF(G17=0,0,(H17+H27)/G17)","v":0}]
[null,"Formfaktor (Aom/Atemp)",{"$f":"IFERROR(D17/'A. Byggnadsinfo med BBR'!D43,0)","v":0},"  ",null,{"$f":"IFERROR(G17/'A. Byggnadsinfo med BBR'!E43,0)","v":0}]
[null,"Luftläckning vid 50 Pa,    l/s,m2Aom"]
[]
[]
[null,"Solskydd - indata",null,null,null,null,null,null,"Projektspecifika anteckningar"]
[null,null,"Före åtgärd",null,null,"Efter renovering"]
[null,"Fönsterglas g-värde , S","     ",null,null,"     "]
[null,"Fönsterglas g-värde, Ö","     ",null,null,"     "]
[null,"Fönsterglas g-värde, V","     ",null,null,"     ",null,null,null," Alt. g-syst, som är inkl. gardiner mm."]
[null,"Fönsterglas g-värde, N","     ",null,null,"     ",null,null,null," Para ihop solskydd och fönsterglas?"]
[null,"Ev. skuggningsandel","     ",null,null,"     ",null,null,null,"Anm. Skuggningsandel avser ytterligare begränsning av solinstrålningen i form av horisontavskärmning, utkragande balkonger eller dylikt, som inte direkt påverkas av brukare."]
[null,"Typ av solskydd  ","     ",null,null,"     ",null,null,null,"Rullist?"]
[]
[null,"B3. Beräkningsindata – Allmänt",null,null,null,null,null,null,"Projektspecifika anteckningar"]
[null,null,{"$f":"C35","v":"Före åtgärd"},null,null,{"$f":"F35","v":"Efter renovering"}]
[null,"Beräkningsprogram, version","     ",null,null,{"$f":"F36","v":"     "}]
[null,"Klimatdatafil, ort och år","     ",null,null,{"$f":"F37","v":"     "}]
[null,"Total Atemp",null,null,null,{"$f":"F38","v":"     "}]
[null,"Antal beräkningszoner (för olika verksamheter etc.)","      ",null,null,{"$f":"F39","v":"     "}]
[null," Överensstämmer brukarindata för bostäder med BEN ? Om nej, ange avvikelse och motiv: "]
[]
[]
[null,"B4. Beräkningsindata – Brukare",null,null,null,null,null,null,"Projektspecifika anteckningar"]
[null,null,{"$f":"C44","v":"Före åtgärd"},null,null,{"$f":"F44","v":"Efter renovering"}]
[null,"Indata per beräkningszon","Zon      ","Zon      ","Zon      ","Zon      ","Zon      ","Zon      ",null," Flexiblare blankett önskas för lokaler, t.ex. med möjlighet till fler än tre zoner. Är denna ruta onödig, eller ska man alternativt redovisa princip för zonindelning?"]
[null,"Typ av verksamhet",null,"     ","     ","     ","     ","     ","     "]
[null,"Verksamhetstider vardagar, klockslag",null,null,null,null,null,null,null,"Flera rader för verksamhetstider."]
[null,"Verksamhetstider helgdagar, klockslag",null,"     ","     ","     ","     ","     ","     "]
[null,"Inneklimat och interna värmelaster:","Zon      ","Zon      ","Zon      ","Zon      ","Zon      ","Zon      "]
[null,"Lägsta lufttemperatur vintertid, ºC",null,"     ","     ","     ","     ","     ","     "]
[null,"Högsta lufttemperatur sommartid, ºC",null,"     ","     ","     ","     ","     ","     "]
[null,"Personvärme (medel) under verksamhetstid, W/m3",null,"     ","     ","     ","     ","     ","     "]
[null,"Antagen närvaro, %",null,"     ","     ","     ","     ","     ","     "]
[null,"Belysningseffekt (medel) under verksamhetstid W/m3",null,"     ","     ","     ","     ","     ","     "]
[null,"Typ av styrning och reglering av belysning",null,"     ","     ","     ","     ","     ","     "]
[null,"Elapparateffekt (medel) under verksamhetstid, W/m3",null,"     ","     ","     ","     ","     ","     "]
[]
[null,"B5. Beräkningsindata - Installationer",null,null,null,null,null,null,"Projektspecifika anteckningar"]
[null,null,{"$f":"C53","v":"Före åtgärd"},null,null,{"$f":"F53","v":"Efter renovering"},null,null,null,"För bostäder räcker det med att nedtill redovisa luftflöde, SFP-tal, temperaturverkningsgrad, SCOP värme och SCOP varmvatten för en beräkningszon."]
[null,"Ventilationssystem:","Zon      ","Zon      ","Zon      ","Zon      ","Zon      ","Zon      ",null," Infoga beskrivning av system för värmetillförsel, kyla, TVV och distributionssystem? Alternativt i inledningen."]
[null,"Typ: CAV eller VAV","     ","     ","     ","     ","     ","     ","     "]
[null,"Om CAV: Ventilationsflöde, l/s,m2 Atemp","     ","     ","     ","     ","     ","     ","     "]
[null,"Om CAV: Frånvaroflöde, l/s,m2 Atemp","     ","     ","     ","     ","     ","     ","     "]
[null,"Om VAV: Lägsta ventflöde, l/s,m2 Atemp","     ","     ","     ","     ","     ","     ","     "]
[null,"Om VAV: Medelflöde vid närvaro, l/s,m2 Atemp","     ","     ","     ","     ","     ","     ","     "]
[null,"Om VAV: Högsta ventflöde, l/s,m2 Atemp","     ","     ","     ","     ","     ","     ","     "]
[null,"Om VAV: Frånvaroflöde, l/s,m2 Atemp","     ","     ","     ","     ","     ","     ","     "]
[null,"SFP -tal","     ","     ","     ","     ","     ","     ","     "," Definiera SFP – för aggregat eller system? SFPv eller SFPe - rullist?"]
[null,"Tilluftstemperatur,°C","     ","     ","     ","     ","     ","     ","     "]
[null,"Temperaturverkningsgrad , värmeåtervinning, %","     ","     ","     ","     ","     ","     ","     "," Instruktion och hänvisning till definition som tar hänsyn till avfrostning behövs. Årsverkningsgrad."]
[null,"Drifttider för ventilation","     ","     ","     ","     ","     ","     ","     "]
[null,"     ","     ","     ","     ","     ","     ","     ","     "]
[null,"Värme  och kyla:","Zon      ","Zon      ","Zon      ","Zon      ","Zon      ","Zon      "]
[null,"SCOP värme","     ","     ","     ","     ","     ","     ","     "]
[null,"SCOP varmvatten","     ","     ","     ","     ","     ","     ","     "]
[null,"SCOP  kylmaskin",null,"     ","     ","     ","     ","     ","     "]
[null,"     ","     ","     ","     ","     ","     ","     ","     "]
[null,"VVC:","Zon      ","Zon      ","Zon      ","Zon      ","Zon      ","Zon      "]
[null,"Rörlängd, m","     ","     ","     ","     ","     ","     ","     "]
[null,"Isolerklass, VVC-isolering","     ","     ","     ","     ","     ","     ","     "]
[null,"Övrigt:","Zon      ","Zon      ","Zon      ","Zon      ","Zon      ","Zon      "]

{"sheet":"PETberäkning","index":4,"n_rows":32,"n_cols":16,"rows_kept":32,"cut":false,"hidden":false,"merged":[]}
[null,"Primärenergitalsberäkning från beräknings- och mätresultat"]
[null,null,null,null,null,null,null,"Viktningsfaktorer, VFi (PEi)"]
[null,null,null,null,null,null,null,null,"BBR 25","BBR 29"]
[null,null,"Inför startbesked","Inför slutbesked",null,null,null,"El",1.6,1.8]
[null,"Elvärmd byggnad J/N",{"$f":"'A. Byggnadsinfo med BBR'!D25","v":"N"},{"$f":"'A. Byggnadsinfo med BBR'!E25","v":"N"},null,null,null,"Fjärrvärme",1,0.7]
[null,"Atemp",{"$f":"'A. Byggnadsinfo med BBR'!D43","v":0},{"$f":"'A. Byggnadsinfo med BBR'!E43","v":0},null,null,null,"Fjärrkyla",1,0.6]
[null,"Fgeo",{"$f":"'A. Byggnadsinfo med BBR'!E51","v":{"$error":"#N/A"}},null,null,null,null,"Biobränsle",1,0.6]
[null,null,null,null,null,null,null,"Olja & gas",1,1.8]
[null,null,"Beräknat före åtgärd","Beräknat efter renovering","Uppmätt före åtgärd","Uppmätt efter renovering","Uppmätt efter renov. år 2",null,null,null,{"$f":"C9","v":"Beräknat före åtgärd"},{"$f":"D9","v":"Beräknat efter renovering"},{"$f":"E9","v":"Uppmätt före åtgärd"},{"$f":"F9","v":"Uppmätt efter renovering"},{"$f":"G9","v":"Uppmätt efter renov. år 2"}]
[null,null,"kWh","kWh","kWh","kWh","kWh",null,null,"Primärenergital (BBR29, viktat):",{"$f":"IFERROR(SUM(K11:K15),0)","v":0},{"$f":"IFERROR(SUM(L11:L15),0)","v":0},{"$f":"IFERROR(SUM(M11:M15),0)","v":0},{"$f":"IFERROR(SUM(N11:N15),0)","v":0},0,"kWh/m2Atempår"]
[null,"Uppvärmning, el",{"$f":"'B1. Resultat beräkning'!D28","v":0},{"$f":"'B1. Resultat beräkning'!F28","v":0},{"$f":"IF('C2. Inmatning och verifiering'!$AA$26=0,0,'C2. Inmatning och verifiering'!X$26*'C2. Inmatning och verifiering'!$AE$26/'C2. Inmatning och verifiering'!$AA$26)","v":0},{"$f":"IF('C2. Inmatning och verifiering'!AA40=0,0,'C2. Inmatning och verifiering'!X40*'C2. Inmatning och verifiering'!AE40/'C2. Inmatning och verifiering'!AA40)","v":0},{"$f":"IF('C2. Inmatning och verifiering'!AA54=0,0,'C2. Inmatning och verifiering'!X54*'C2. Inmatning och verifiering'!AE54/'C2. Inmatning och verifiering'!AA54)","v":0},null,"Varav:","Uppvärmning",{"$f":"IFERROR((C11/$C$7*$J$4+C12/$C$7*$J$5+C13/$C$7*$J$7+C14/$C$7*$J$8)/$C$6,0)","v":0},{"$f":"IFERROR((D11/$C$7*$J$4+D12/$C$7*$J$5+D13/$C$7*$J$7+D14/$C$7*$J$8)/$C$6,0)","v":0},{"$f":"IFERROR((E11/$C$7*$J$4+E12/$C$7*$J$5+E13/$C$7*$J$7+E14/$C$7*$J$8)/$C$6,0)","v":0},{"$f":"IFERROR((F11/$C$7*$J$4+F12/$C$7*$J$5+F13/$C$7*$J$7+F14/$C$7*$J$8)/$C$6,0)","v":0},{"$f":"IFERROR((G11/$C$7*$J$4+G12/$C$7*$J$5+G13/$C$7*$J$7+G14/$C$7*$J$8)/$C$6,0)","v":0}]
[null,"Uppvärmning, fjv",{"$f":"'B1. Resultat beräkning'!D29","v":0},{"$f":"'B1. Resultat beräkning'!F29","v":0},{"$f":"IF('C2. Inmatning och verifiering'!$AA$26=0,0,'C2. Inmatning och verifiering'!W$26*'C2. Inmatning och verifiering'!$AE$26/'C2. Inmatning och verifiering'!$AA$26)","v":0},{"$f":"IF('C2. Inmatning och verifiering'!$AA$40=0,0,'C2. Inmatning och verifiering'!W$40*'C2. Inmatning och verifiering'!$AE$40/'C2. Inmatning och verifiering'!$AA$40)","v":0},{"$f":"IF('C2. Inmatning och verifiering'!$AA$54=0,0,'C2. Inmatning och verifiering'!W$54*'C2. Inmatning och verifiering'!$AE$54/'C2. Inmatning och verifiering'!$AA$54)","v":0},null,null,"VVC",{"$f":"IFERROR((C15*$J$4+C16*$J$5+C17*$J$7+C18*$J$8)/$C$6,0)","v":0},{"$f":"IFERROR((D15*$J$4+D16*$J$5+D17*$J$7+D18*$J$8)/$C$6,0)","v":0},{"$f":"IFERROR((E15*$J$4+E16*$J$5+E17*$J$7+E18*$J$8)/$C$6,0)","v":0},{"$f":"IFERROR((F15*$J$4+F16*$J$5+F17*$J$7+F18*$J$8)/$C$6,0)","v":0},{"$f":"IFERROR((G15*$J$4+G16*$J$5+G17*$J$7+G18*$J$8)/$C$6,0)","v":0}]
[null,"Uppvärmning, bio",{"$f":"'B1. Resultat beräkning'!D30","v":0},{"$f":"'B1. Resultat beräkning'!F30","v":0},{"$f":"IF('C2. Inmatning och verifiering'!$AA$26=0,0,'C2. Inmatning och verifiering'!Y$26*'C2. Inmatning och verifiering'!$AE$26/'C2. Inmatning och verifiering'!$AA$26)","v":0},{"$f":"IF('C2. Inmatning och verifiering'!$AA$40=0,0,'C2. Inmatning och verifiering'!Y$40*'C2. Inmatning och verifiering'!$AE$40/'C2. Inmatning och verifiering'!$AA$40)","v":0},{"$f":"IF('C2. Inmatning och verifiering'!$AA$54=0,0,'C2. Inmatning och verifiering'!Y$54*'C2. Inmatning och verifiering'!$AE$54/'C2. Inmatning och verifiering'!$AA$54)","v":0},null,null,"Tappvv",{"$f":"IFERROR((C19*$J$4+C20*$J$5+C21*$J$7+C22*$J$8)/$C$6,0)","v":0},{"$f":"IFERROR((D19*$J$4+D20*$J$5+D21*$J$7+D22*$J$8)/$C$6,0)","v":0},{"$f":"IFERROR((E19*$J$4+E20*$J$5+E21*$J$7+E22*$J$8)/$C$6,0)","v":0},{"$f":"IFERROR((F19*$J$4+F20*$J$5+F21*$J$7+F22*$J$8)/$C$6,0)","v":0},{"$f":"IFERROR((G19*$J$4+G20*$J$5+G21*$J$7+G22*$J$8)/$C$6,0)","v":0}]
[null,"Uppvärmning, olja & gas",{"$f":"'B1. Resultat beräkning'!D31","v":0},{"$f":"'B1. Resultat beräkning'!F31","v":0},{"$f":"IF('C2. Inmatning och verifiering'!$AA$26=0,0,'C2. Inmatning och verifiering'!Z$26*'C2. Inmatning och verifiering'!$AE$26/'C2. Inmatning och verifiering'!$AA$26)","v":0},{"$f":"IF('C2. Inmatning och verifiering'!$AA$40=0,0,'C2. Inmatning och verifiering'!Z$40*'C2. Inmatning och verifiering'!$AE$40/'C2. Inmatning och verifiering'!$AA$40)","v":0},{"$f":"IF('C2. Inmatning och verifiering'!$AA$54=0,0,'C2. Inmatning och verifiering'!Z$54*'C2. Inmatning och verifiering'!$AE$54/'C2. Inmatning och verifiering'!$AA$54)","v":0},null,null,"Komfortkyla",{"$f":"IFERROR((C23*$J$4+C24*$J$6+C25*$J$5+C26*$J$7+C27*$J$8)/$C$6,0)","v":0},{"$f":"IFERROR((D23*$J$4+D24*$J$6+D25*$J$5+D26*$J$7+D27*$J$8)/$C$6,0)","v":0},{"$f":"IFERROR((E23*$J$4+E24*$J$6+E25*$J$5+E26*$J$7+E27*$J$8)/$C$6,0)","v":0},{"$f":"IFERROR((F23*$J$4+F24*$J$6+F25*$J$5+F26*$J$7+F27*$J$8)/$C$6,0)","v":0},{"$f":"IFERROR((G23*$J$4+G24*$J$6+G25*$J$5+G26*$J$7+G27*$J$8)/$C$6,0)","v":0}]
[null,"VVC, el",{"$f":"'B1. Resultat beräkning'!D32","v":0},{"$f":"'B1. Resultat beräkning'!F32","v":0},{"$f":"'C2. Inmatning och verifiering'!N$26","v":0},{"$f":"'C2. Inmatning och verifiering'!N$40","v":0},{"$f":"'C2. Inmatning och verifiering'!N$54","v":0},null,null,"Fastighetsenergi",{"$f":"IFERROR((C28*$J$4+C29*$J$5+C30*$J$7+C31*$J$8)/$C$6,0)","v":0},{"$f":"IFERROR((D28*$J$4+D29*$J$5+D30*$J$7+D31*$J$8)/$C$6,0)","v":0},{"$f":"IFERROR((E28*$J$4+E29*$J$5+E30*$J$7+E31*$J$8)/$C$6,0)","v":0},{"$f":"IFERROR((F28*$J$4+F29*$J$5+F30*$J$7+F31*$J$8)/$C$6,0)","v":0},{"$f":"IFERROR((G28*$J$4+G29*$J$5+G30*$J$7+G31*$J$8)/$C$6,0)","v":0}]
[null,"VVC, fjv",{"$f":"'B1. Resultat beräkning'!D33","v":0},{"$f":"'B1. Resultat beräkning'!F33","v":0},{"$f":"'C2. Inmatning och verifiering'!M$26","v":0},{"$f":"'C2. Inmatning och verifiering'!M$40","v":0},{"$f":"'C2. Inmatning och verifiering'!M$54","v":0}]
[null,"VVC, bio",{"$f":"'B1. Resultat beräkning'!D34","v":0},{"$f":"'B1. Resultat beräkning'!F34","v":0},{"$f":"'C2. Inmatning och verifiering'!O$26","v":0},{"$f":"'C2. Inmatning och verifiering'!O$40","v":0},{"$f":"'C2. Inmatning och verifiering'!O$54","v":0},null,null,"Primärenergital (BBR25, viktat):",{"$f":"IFERROR(SUM(K18:K22),0)","v":0},{"$f":"IFERROR(SUM(L18:L22),0)","v":0},0,0,0,"kWh/m2Atempår"]
[null,"VVC, olja & gas",{"$f":"'B1. Resultat beräkning'!D35","v":0},{"$f":"'B1. Resultat beräkning'!F35","v":0},{"$f":"'C2. Inmatning och verifiering'!P$26","v":0},{"$f":"'C2. Inmatning och verifiering'!P$40","v":0},{"$f":"'C2. Inmatning och verifiering'!P$54","v":0},null,"Varav:","Uppvärmning",{"$f":"IFERROR((C$11/$C$7*$I$4+(C$12+C$13+C$14)/$C$7*$I$5)/$C$6,0)","v":0},{"$f":"IFERROR((D$11/$C$7*$I$4+(D$12+D$13+D$14)/$C$7*$I$5)/$C$6,0)","v":0},{"$f":"IFERROR((E$11/$C$7*$I$4+(E$12+E$13+E$14)/$C$7*$I$5)/$C$6,0)","v":0},{"$f":"IFERROR((F$11/$C$7*$I$4+(F$12+F$13+F$14)/$C$7*$I$5)/$C$6,0)","v":0},{"$f":"IFERROR((G$11/$C$7*$I$4+(G$12+G$13+G$14)/$C$7*$I$5)/$C$6,0)","v":0}]
[null,"Tappvv, el",{"$f":"'B1. Resultat beräkning'!D36","v":0},{"$f":"'B1. Resultat beräkning'!F36","v":0},{"$f":"IF('C2. Inmatning och verifiering'!S26=0,0,'C2. Inmatning och verifiering'!$AH$5*'C2. Inmatning och verifiering'!$W$4)","v":0},{"$f":"IF('C2. Inmatning och verifiering'!S40=0,0,'C2. Inmatning och verifiering'!$AH$5*'C2. Inmatning och verifiering'!$W$4)","v":0},{"$f":"IF('C2. Inmatning och verifiering'!S54=0,0,'C2. Inmatning och verifiering'!$AH$5*'C2. Inmatning och verifiering'!$W$4)","v":0},"Funkar för en energibärare, fixa om fler.",null,"VVC",{"$f":"IFERROR((C$15*$I$4+(C$16+C$17+C$18)*$I$5)/$C$6,0)","v":0},{"$f":"IFERROR((D$15*$I$4+(D$16+D$17+D$18)*$I$5)/$C$6,0)","v":0},{"$f":"IFERROR((E$15*$I$4+(E$16+E$17+E$18)*$I$5)/$C$6,0)","v":0},{"$f":"IFERROR((F$15*$I$4+(F$16+F$17+F$18)*$I$5)/$C$6,0)","v":0},{"$f":"IFERROR((G$15*$I$4+(G$16+G$17+G$18)*$I$5)/$C$6,0)","v":0}]
[null,"Tappvv, fjv",{"$f":"'B1. Resultat beräkning'!D37","v":0},{"$f":"'B1. Resultat beräkning'!F37","v":0},{"$f":"IF('C2. Inmatning och verifiering'!R26=0,0,'C2. Inmatning och verifiering'!$AH$5*'C2. Inmatning och verifiering'!$W$4)","v":0},{"$f":"IF('C2. Inmatning och verifiering'!R40=0,0,'C2. Inmatning och verifiering'!$AH$6*'C2. Inmatning och verifiering'!$W$4)","v":0},{"$f":"IF('C2. Inmatning och verifiering'!R54=0,0,'C2. Inmatning och verifiering'!$AH$7*'C2. Inmatning och verifiering'!$W$4)","v":0},null,null,"Tappvv",{"$f":"IFERROR(($C$19*$I$4+($C$20+$C$21+$C$22)*$I$5)/$C$6,0)","v":0},{"$f":"IFERROR(($C$19*$I$4+($C$20+$C$21+$C$22)*$I$5)/$C$6,0)","v":0},{"$f":"IFERROR(($C$19*$I$4+($C$20+$C$21+$C$22)*$I$5)/$C$6,0)","v":0},{"$f":"IFERROR(($C$19*$I$4+($C$20+$C$21+$C$22)*$I$5)/$C$6,0)","v":0},{"$f":"IFERROR(($C$19*$I$4+($C$20+$C$21+$C$22)*$I$5)/$C$6,0)","v":0}]
[null,"Tappvv, bio",{"$f":"'B1. Resultat beräkning'!D38","v":0},{"$f":"'B1. Resultat beräkning'!F38","v":0},{"$f":"IF('C2. Inmatning och verifiering'!T26=0,0,'C2. Inmatning och verifiering'!$AH$5*'C2. Inmatning och verifiering'!$W$4)","v":0},{"$f":"IF('C2. Inmatning och verifiering'!T40=0,0,'C2. Inmatning och verifiering'!$AH$6*'C2. Inmatning och verifiering'!$W$4)","v":0},{"$f":"IF('C2. Inmatning och verifiering'!T54=0,0,'C2. Inmatning och verifiering'!$AH$7*'C2. Inmatning och verifiering'!$W$4)","v":0},null,null,"Komfortkyla",{"$f":"IFERROR((IF($C$5=\"J\",1,1.875)*C$23*$I$4+(C$24+C$25+C$26+C$27)*$I$5)/$C$6,0)","v":0},{"$f":"IFERROR((IF($D$5=\"J\",1,1.875)*D$23*$I$4+(D$24+D$25+D$26+D$27)*$I$5)/$C$6,0)","v":0},{"$f":"IFERROR((IF($D$5=\"J\",1,1.875)*E$23*$I$4+(E$24+E$25+E$26+E$27)*$I$5)/$C$6,0)","v":0},{"$f":"IFERROR((IF($D$5=\"J\",1,1.875)*F$23*$I$4+(F$24+F$25+F$26+F$27)*$I$5)/$C$6,0)","v":0},{"$f":"IFERROR((IF($D$5=\"J\",1,1.875)*G$23*$I$4+(G$24+G$25+G$26+G$27)*$I$5)/$C$6,0)","v":0}]
[null,"Tappvv, olja & gas",{"$f":"'B1. Resultat beräkning'!D39","v":0},{"$f":"'B1. Resultat beräkning'!F39","v":0},{"$f":"IF('C2. Inmatning och verifiering'!U26=0,0,'C2. Inmatning och verifiering'!$AH$5*'C2. Inmatning och verifiering'!$W$4)","v":0},{"$f":"IF('C2. Inmatning och verifiering'!U40=0,0,'C2. Inmatning och verifiering'!$AH$6*'C2. Inmatning och verifiering'!$W$4)","v":0},{"$f":"IF('C2. Inmatning och verifiering'!U54=0,0,'C2. Inmatning och verifiering'!$AH$7*'C2. Inmatning och verifiering'!$W$4)","v":0},null,null,"Fastighetsenergi",{"$f":"IFERROR((C$28*$I$4+(C$29+C$30+C$31)*$I$5)/$C$6,0)","v":0},{"$f":"IFERROR((D$28*$I$4+(D$29+D$30+D$31)*$I$5)/$C$6,0)","v":0},{"$f":"IFERROR((E$28*$I$4+(E$29+E$30+E$31)*$I$5)/$C$6,0)","v":0},{"$f":"IFERROR((F$28*$I$4+(F$29+F$30+F$31)*$I$5)/$C$6,0)","v":0},{"$f":"IFERROR((G$28*$I$4+(G$29+G$30+G$31)*$I$5)/$C$6,0)","v":0}]
[null,"Komfortkyla, el",{"$f":"'B1. Resultat beräkning'!D40","v":0},{"$f":"'B1. Resultat beräkning'!F40","v":0},{"$f":"'C2. Inmatning och verifiering'!$AU26","v":0},{"$f":"'C2. Inmatning och verifiering'!$AU40","v":0},{"$f":"'C2. Inmatning och verifiering'!$AU54","v":0}]
[null,"Komfortkyla, fjk",{"$f":"'B1. Resultat beräkning'!D41","v":0},{"$f":"'B1. Resultat beräkning'!F41","v":0},{"$f":"'C2. Inmatning och verifiering'!$AT26","v":0},{"$f":"'C2. Inmatning och verifiering'!$AT40","v":0},{"$f":"'C2. Inmatning och verifiering'!$AT54","v":0},null,null,"Specifik energianvändning (oviktad):",{"$f":"IFERROR(SUM(K25:K29),0)","v":0},0,0,0,0,"kWh/m2Atempår"]
[null,"Komfortkyla, fjv",{"$f":"'B1. Resultat beräkning'!D42","v":0},{"$f":"'B1. Resultat beräkning'!F42","v":0},null,null,null,null,"Varav:","Uppvärmning",{"$f":"IFERROR(SUM(C11:C14)/$C$6,0)","v":0},{"$f":"IFERROR(SUM(D11:D14)/$C$6,0)","v":0},0,0,0]
[null,"Komfortkyla, bio",{"$f":"'B1. Resultat beräkning'!D43","v":0},{"$f":"'B1. Resultat beräkning'!F43","v":0},null,null,null,null,null,"VVC",{"$f":"IFERROR(SUM(C15:C18)/$C$6,0)","v":0},{"$f":"IFERROR(SUM(D15:D18)/$C$6,0)","v":0},0,0,0]
[null,"Komfortkyla, olja & gas",{"$f":"'B1. Resultat beräkning'!D44","v":0},{"$f":"'B1. Resultat beräkning'!F44","v":0},null,null,null,null,null,"Tappvv",{"$f":"IFERROR(SUM(C19:C22)/$C$6,0)","v":0},{"$f":"IFERROR(SUM(D19:D22)/$C$6,0)","v":0},0,0,0]
[null,"Fastighetsenergi, el",{"$f":"'B1. Resultat beräkning'!D45","v":0},{"$f":"'B1. Resultat beräkning'!F45","v":0},{"$f":"'C2. Inmatning och verifiering'!$AK26","v":0},{"$f":"'C2. Inmatning och verifiering'!$AK40","v":0},{"$f":"'C2. Inmatning och verifiering'!$AK54","v":0},null,null,"Komfortkyla",{"$f":"IFERROR(SUM(C23:C27)/$C$6,0)","v":0},{"$f":"IFERROR(SUM(D23:D27)/$C$6,0)","v":0},0,0,0]
[null,"Fastighetsenergi, fjv",{"$f":"'B1. Resultat beräkning'!D46","v":0},{"$f":"'B1. Resultat beräkning'!F46","v":0},null,null,null,null,null,"Fastighetsenergi",{"$f":"IFERROR(SUM(C28:C31)/$C$6,0)","v":0},{"$f":"IFERROR(SUM(D28:D31)/$C$6,0)","v":0},0,0,0]
[null,"Fastighetsenergi, bio",{"$f":"'B1. Resultat beräkning'!D47","v":0},{"$f":"'B1. Resultat beräkning'!F47","v":0}]
[null,"Fastighetsenergi, olja & gas",{"$f":"'B1. Resultat beräkning'!D48","v":0},{"$f":"'B1. Resultat beräkning'!F48","v":0}]
[null,"Summa",{"$f":"SUM(C11:C31)","v":0},{"$f":"SUM(D11:D31)","v":0},{"$f":"SUM(E11:E31)","v":0},{"$f":"SUM(F12:F31)","v":0},{"$f":"SUM(G11:G31)","v":0}]

{"sheet":"UHM","index":5,"n_rows":43,"n_cols":14,"rows_kept":43,"cut":false,"hidden":false,"merged":[[1,9,1,13],[2,8,3,8],[2,9,3,9],[17,1,18,1],[17,2,18,2],[1,2,1,6],[2,2,3,2],[2,1,3,1]]}
[]
[null,null," Sammanställning och beräkning av Upphandlingsmyndighetens krav"]
[null,"Rad nr","Nettovärmeenergi (UHM 1A), kWh/m2Atemp","Beräknat inför startbesked ","Uppdaterat inför byggstart","Uppdaterad relationshandling (inför slutbesked)","Verifierat genom mätning",null,"Rad nr","Nettovärmeenergi (UHM 1A), kWh/m2Atemp","Beräknat inför startbesked ","Uppdaterat inför byggstart","Uppdaterad relationshandling (inför slutbesked)","Verifierat genom mätning"]
[null,null,null,"kWh/m2Atemp","kWh/m2Atemp","kWh/m2Atemp","kWh/m2Atemp",null,null,null,"kWh/m2Atemp","kWh/m2Atemp","kWh/m2Atemp","kWh/m2Atemp"]
[null,1,"Värme levererad av fjärrvärme eller annat nät. ",{"$f":"IFERROR('B1. Resultat beräkning'!D29/'A. Byggnadsinfo med BBR'!D43,0)","v":0},{"$f":"IFERROR('B1. Resultat beräkning'!E29/'A. Byggnadsinfo med BBR'!D43,0)","v":0},{"$f":"IFERROR('B1. Resultat beräkning'!F29/'A. Byggnadsinfo med BBR'!E43,0)","v":0},{"$f":"IFERROR(PETberäkning!E12/'A. Byggnadsinfo med BBR'!E43,0)","v":0},null,1,"Värme levererad av fjärrvärme eller annat nät. ",{"$f":"IFERROR('B1. Resultat beräkning'!K29/'A. Byggnadsinfo med BBR'!K43,0)","v":0},{"$f":"IFERROR('B1. Resultat beräkning'!L29/'A. Byggnadsinfo med BBR'!K43,0)","v":0},{"$f":"IFERROR('B1. Resultat beräkning'!M29/'A. Byggnadsinfo med BBR'!L43,0)","v":0},{"$f":"IFERROR(PETberäkning!L12/'A. Byggnadsinfo med BBR'!L43,0)","v":0}]
[null,2,"Värme levererad av värmepumpar.",{"$f":"IFERROR(('B1. Resultat beräkning'!D28+'B1. Resultat beräkning'!D32)*'C2. Inmatning och verifiering'!W6/'A. Byggnadsinfo med BBR'!D43,0)","v":0},{"$f":"IFERROR(('B1. Resultat beräkning'!E28+'B1. Resultat beräkning'!E32)*'C2. Inmatning och verifiering'!W6/'A. Byggnadsinfo med BBR'!D43,0)","v":0},{"$f":"IFERROR(('B1. Resultat beräkning'!F28+'B1. Resultat beräkning'!F32)*'C2. Inmatning och verifiering'!W6/'A. Byggnadsinfo med BBR'!E43,0)","v":0},{"$f":"IFERROR(PETberäkning!E11*'C2. Inmatning och verifiering'!W6/'A. Byggnadsinfo med BBR'!E43,0)","v":0},null,2,"Värme levererad av värmepumpar.",{"$f":"IFERROR(('B1. Resultat beräkning'!K28+'B1. Resultat beräkning'!K32)*'C2. Inmatning och verifiering'!AD6/'A. Byggnadsinfo med BBR'!K43,0)","v":0},{"$f":"IFERROR(('B1. Resultat beräkning'!L28+'B1. Resultat beräkning'!L32)*'C2. Inmatning och verifiering'!AD6/'A. Byggnadsinfo med BBR'!K43,0)","v":0},{"$f":"IFERROR(('B1. Resultat beräkning'!M28+'B1. Resultat beräkning'!M32)*'C2. Inmatning och verifiering'!AD6/'A. Byggnadsinfo med BBR'!L43,0)","v":0},{"$f":"IFERROR(PETberäkning!L11*'C2. Inmatning och verifiering'!AD6/'A. Byggnadsinfo med BBR'!L43,0)","v":0}]
[null,3,"Värme levererad av annan uppvärmning (som ej anges nedan). ",{"$f":"IFERROR(('B1. Resultat beräkning'!D30+'B1. Resultat beräkning'!D31)/'A. Byggnadsinfo med BBR'!D43,0)","v":0},{"$f":"IFERROR(('B1. Resultat beräkning'!E30+'B1. Resultat beräkning'!E31)/'A. Byggnadsinfo med BBR'!D43,0)","v":0},{"$f":"IFERROR(('B1. Resultat beräkning'!F30+'B1. Resultat beräkning'!F31)/'A. Byggnadsinfo med BBR'!E43,0)","v":0},{"$f":"IFERROR((PETberäkning!E13+PETberäkning!E14)/'A. Byggnadsinfo med BBR'!E43,0)","v":0},null,3,"Värme levererad av annan uppvärmning (som ej anges nedan). ",{"$f":"IFERROR(('B1. Resultat beräkning'!K30+'B1. Resultat beräkning'!K31)/'A. Byggnadsinfo med BBR'!K43,0)","v":0},{"$f":"IFERROR(('B1. Resultat beräkning'!L30+'B1. Resultat beräkning'!L31)/'A. Byggnadsinfo med BBR'!K43,0)","v":0},{"$f":"IFERROR(('B1. Resultat beräkning'!M30+'B1. Resultat beräkning'!M31)/'A. Byggnadsinfo med BBR'!L43,0)","v":0},{"$f":"IFERROR((PETberäkning!L13+PETberäkning!L14)/'A. Byggnadsinfo med BBR'!L43,0)","v":0}]
[null,4,"Värme levererad av lokalt producerad /gratis energi (solvärme m.m.). ",{"$f":"'B1. Resultat beräkning'!D8","v":0},{"$f":"'B1. Resultat beräkning'!E8","v":0},{"$f":"'B1. Resultat beräkning'!F8","v":0},{"$f":"IFERROR('C2. Inmatning och verifiering'!AG26/'A. Byggnadsinfo med BBR'!E43,0)","v":0},null,4,"Värme levererad av lokalt producerad /gratis energi (solvärme m.m.). ",{"$f":"'B1. Resultat beräkning'!K8","v":0},{"$f":"'B1. Resultat beräkning'!L8","v":0},{"$f":"'B1. Resultat beräkning'!M8","v":0},{"$f":"IFERROR('C2. Inmatning och verifiering'!AN26/'A. Byggnadsinfo med BBR'!L43,0)","v":0}]
[null,5,"Värme från komfortgolvvärme, handdukstork, etc. med el.",{"$f":"'B1. Resultat beräkning'!D9","v":0},{"$f":"'B1. Resultat beräkning'!E9","v":0},{"$f":"'B1. Resultat beräkning'!F9","v":0},null,null,5,"Värme från komfortgolvvärme, handdukstork, etc. med el.",{"$f":"'B1. Resultat beräkning'!K9","v":0},{"$f":"'B1. Resultat beräkning'!L9","v":0},{"$f":"'B1. Resultat beräkning'!M9","v":0}]
[null,6,"Vädringspåslag",{"$f":"'B1. Resultat beräkning'!D10","v":0},{"$f":"'B1. Resultat beräkning'!E10","v":0},{"$f":"'B1. Resultat beräkning'!F10","v":0},null,null,6,"Vädringspåslag",{"$f":"'B1. Resultat beräkning'!K10","v":0},{"$f":"'B1. Resultat beräkning'!L10","v":0},{"$f":"'B1. Resultat beräkning'!M10","v":0}]
[null,7,"Övergripande säkerhetsmarginal enligt BEN.",{"$f":"'B1. Resultat beräkning'!D19","v":0},{"$f":"'B1. Resultat beräkning'!E19","v":0},{"$f":"'B1. Resultat beräkning'!F19","v":0},null,null,7,"Övergripande säkerhetsmarginal enligt BEN.",{"$f":"'B1. Resultat beräkning'!K19","v":0},{"$f":"'B1. Resultat beräkning'!L19","v":0},{"$f":"'B1. Resultat beräkning'!M19","v":0}]
[null,null,"Av summerad nettovärme ovan, ange vad som utgör:",null,"     ",null,null,null,null,"Av summerad nettovärme ovan, ange vad som utgör:",null,"     "]
[null,8,"….varav VVC-förluster (totala) och stilleståndsförluster",{"$f":"'B1. Resultat beräkning'!D6","v":0},{"$f":"'B1. Resultat beräkning'!E6","v":0},{"$f":"'B1. Resultat beräkning'!F6","v":0},{"$f":"IFERROR(('C2. Inmatning och verifiering'!M26+'C2. Inmatning och verifiering'!N26+'C2. Inmatning och verifiering'!O26+'C2. Inmatning och verifiering'!P26)/'A. Byggnadsinfo med BBR'!E43,0)","v":0},null,8,"….varav VVC-förluster (totala) och stilleståndsförluster",{"$f":"'B1. Resultat beräkning'!K6","v":0},{"$f":"'B1. Resultat beräkning'!L6","v":0},{"$f":"'B1. Resultat beräkning'!M6","v":0},{"$f":"('C2. Inmatning och verifiering'!T26+'C2. Inmatning och verifiering'!U26+'C2. Inmatning och verifiering'!V26+'C2. Inmatning och verifiering'!W26)/'A. Byggnadsinfo med BBR'!L43","v":{"$error":"#VALUE!"}}]
[" ",9,"      ….varav distributionsförlust för värme",{"$f":"'B1. Resultat beräkning'!D7","v":0},{"$f":"'B1. Resultat beräkning'!E7","v":0},{"$f":"'B1. Resultat beräkning'!F7","v":0},null," ",9,"      ….varav distributionsförlust för värme",{"$f":"'B1. Resultat beräkning'!K7","v":0},{"$f":"'B1. Resultat beräkning'!L7","v":0},{"$f":"'B1. Resultat beräkning'!M7","v":0}]
[null,10,"Summa nettovärmeenergi enligt UHM 1A",{"$f":"SUM(D5:D11)","v":0},{"$f":"SUM(E5:E11)","v":0},{"$f":"SUM(F5:F11)","v":0},{"$f":"SUM(G5:G9)","v":0},null,10,"Summa nettovärmeenergi enligt UHM 1A",{"$f":"SUM(K5:K11)","v":0},{"$f":"SUM(L5:L11)","v":0},{"$f":"SUM(M5:M11)","v":0},{"$f":"SUM(N5:N9)","v":0}]
[]
[]
[null,"Rad nr","Byggnadens energianvändning (UHM 1B), kWh/m2 Atemp",{"$f":"D3","v":"Beräknat inför startbesked "},{"$f":"E3","v":"Uppdaterat inför byggstart"},{"$f":"F3","v":"Uppdaterad relationshandling (inför slutbesked)"},{"$f":"G3","v":"Verifierat genom mätning"}]
[null,null,null,"kWh/m2Atemp","kWh/m2Atemp","kWh/m2Atemp","kWh/m2Atemp"]
[null,12,"Nettovärmeenergi (UHM 1A, rad 10) ",{"$f":"SUM(D15-D6)","v":0},{"$f":"SUM(E15-E6)","v":0},{"$f":"SUM(F15-F6)","v":0},{"$f":"SUM(G15-G6)","v":0}]
[null,13,"Fjärrvärme eller bränslen för normal användning av tappvarmvatten.",{"$f":"IFERROR(('B1. Resultat beräkning'!D37+'B1. Resultat beräkning'!D38+'B1. Resultat beräkning'!D39)/'A. Byggnadsinfo med BBR'!D43,0)","v":0},{"$f":"IFERROR(('B1. Resultat beräkning'!E37+'B1. Resultat beräkning'!E38+'B1. Resultat beräkning'!E39)/'A. Byggnadsinfo med BBR'!D43,0)","v":0},{"$f":"IFERROR(('B1. Resultat beräkning'!F37+'B1. Resultat beräkning'!F38+'B1. Resultat beräkning'!F39)/'A. Byggnadsinfo med BBR'!E43,0)","v":0},{"$f":"IF(('C2. Inmatning och verifiering'!R26+'C2. Inmatning och verifiering'!T26+'C2. Inmatning och verifiering'!U26)>0,'C2. Inmatning och verifiering'!AH5,0)","v":0}]
[null,14,"EL (till värmepump eller annat) för tappvarmvatten. Alternativt se rad 16.",{"$f":"IFERROR('B1. Resultat beräkning'!D36/'A. Byggnadsinfo med BBR'!D43,0)","v":0},{"$f":"IFERROR('B1. Resultat beräkning'!E36/'A. Byggnadsinfo med BBR'!D43,0)","v":0},{"$f":"IFERROR('B1. Resultat beräkning'!F36/'A. Byggnadsinfo med BBR'!E43,0)","v":0},{"$f":"IF(('C2. Inmatning och verifiering'!S26)>0,'C2. Inmatning och verifiering'!AH5,0)","v":0}]
[null,15,"EL (till värmepump eller annat) för uppvärmning. Alternativt se rad 16.",{"$f":"IFERROR(('B1. Resultat beräkning'!D28+'B1. Resultat beräkning'!D32)/'A. Byggnadsinfo med BBR'!D43,0)","v":0},{"$f":"IFERROR(('B1. Resultat beräkning'!E28+'B1. Resultat beräkning'!E32)/'A. Byggnadsinfo med BBR'!D43,0)","v":0},{"$f":"IFERROR(('B1. Resultat beräkning'!F28+'B1. Resultat beräkning'!F32)/'A. Byggnadsinfo med BBR'!E43,0)","v":0},{"$f":"IFERROR((PETberäkning!E11)/'A. Byggnadsinfo med BBR'!E43,0)","v":0}]
[null,16,"Alternativ till rad 14 och 15. EL (till värmepump eller annat) för uppvärmning och tappvarmvatten.",null,null,null,{"$f":"IFERROR('C2. Inmatning och verifiering'!G26/'A. Byggnadsinfo med BBR'!E43,0)","v":0}]
[null,17,"EL till fastighetsenergi.",{"$f":"IFERROR('B1. Resultat beräkning'!D45/'A. Byggnadsinfo med BBR'!D43,0)","v":0},{"$f":"IFERROR('B1. Resultat beräkning'!E45/'A. Byggnadsinfo med BBR'!D43,0)","v":0},{"$f":"IFERROR('B1. Resultat beräkning'!F45/'A. Byggnadsinfo med BBR'!E43,0)","v":0},{"$f":"IFERROR(('C2. Inmatning och verifiering'!AK26)/'A. Byggnadsinfo med BBR'!E43,0)","v":0}]
[null,18,"EL till komfortkyla (om ej inräknast i fastighetsenergi).",{"$f":"IFERROR('B1. Resultat beräkning'!D40/'A. Byggnadsinfo med BBR'!D43,0)","v":0},{"$f":"IFERROR('B1. Resultat beräkning'!E40/'A. Byggnadsinfo med BBR'!D43,0)","v":0},{"$f":"IFERROR('B1. Resultat beräkning'!F40/'A. Byggnadsinfo med BBR'!E43,0)","v":0},{"$f":"IFERROR(PETberäkning!E23/'A. Byggnadsinfo med BBR'!E43,0)","v":0}]
[null,19,"Fjärrkyla till komfortkyla.",{"$f":"IFERROR('B1. Resultat beräkning'!D41/'A. Byggnadsinfo med BBR'!D43,0)","v":0},{"$f":"IFERROR('B1. Resultat beräkning'!E41/'A. Byggnadsinfo med BBR'!D43,0)","v":0},{"$f":"IFERROR('B1. Resultat beräkning'!F41/'A. Byggnadsinfo med BBR'!E43,0)","v":0},{"$f":"IFERROR(PETberäkning!E24/'A. Byggnadsinfo med BBR'!E43,0)","v":0}]
[null,20,"El- och värmeproduktion från solceller, solvärme m.m.",{"$f":"IFERROR('B1. Resultat beräkning'!D17+'B1. Resultat beräkning'!D8,0)","v":0},{"$f":"IFERROR('B1. Resultat beräkning'!E17+'B1. Resultat beräkning'!E8,0)","v":0},{"$f":"IFERROR('B1. Resultat beräkning'!F17+'B1. Resultat beräkning'!F8,0)","v":0},{"$f":"IFERROR(('C2. Inmatning och verifiering'!AM26+'C2. Inmatning och verifiering'!AG26)/'A. Byggnadsinfo med BBR'!E43,0)","v":0}," "]
[null,null,"Summa byggnadens energianvändning enligt UHM 1B",{"$f":"D20+D21+D22+D23+D25+D26+D27+D28","v":0},{"$f":"E20+E21+E22+E23+E25+E26+E27+E28","v":0},0,{"$f":"IF(G24>0,G24+G20+G21+G25+G26+G27+G28,G20+G21+G22+G23+G25+G26+G27+G28)","v":0}]
[]
[null,null,"I summerad el för fastighetsenergi (rad 17), ange vad som utgör:"]
[null,21,"...varav el till VVC",{"$f":"IFERROR('B1. Resultat beräkning'!D32/'A. Byggnadsinfo med BBR'!D43,0)","v":0},{"$f":"IFERROR('B1. Resultat beräkning'!E32/'A. Byggnadsinfo med BBR'!D43,0)","v":0},{"$f":"IFERROR('B1. Resultat beräkning'!F32/'A. Byggnadsinfo med BBR'!E43,0)","v":0},{"$f":"IFERROR('C2. Inmatning och verifiering'!N26/'A. Byggnadsinfo med BBR'!E43,0)","v":0}]
[null,22,"...varav el till FTX"]
[null,23,"      ….varav el till \"fast\" fastighetsbelysning"]
[null,24,"…varav el till hissar (inklusive fast belysning)"]
[null,25,"…varav el till garage  (inklusive fast belysning)",null,null,null,null,null," "]
[null,26,"… varav el till värme i hängrännor, stuprör, bjälklagskanter"]
[null,null," Ange även vad som utgör:"]
[null,27,"el till tvättstuga i byggnad (exklusive fast belysning)",null,"     "]
[null,28,"el till värme av gångvägar och trottoarer utanför byggnad",null,"     "]
[null,29,"el till gårdshus, fristående garage och fristående tvättstuga"]
[null,30,"el till belysning av tomtmark och gårdar"]
[null,31,"el till elbilsladdare, motorvärmare eller liknande"]

{"sheet":"VFT","index":6,"n_rows":65,"n_cols":23,"rows_kept":65,"cut":false,"hidden":false,"merged":[[2,1,2,5]]}
[null,null,"Beräkning och uppföljning av värmeförlusttal (VFT), enligt UHM och FEBY",null,null,null,null,null,null,null,null,null,"Uppföljning av VFT med mätning av energisignatur"]
[]
[null,null,null,null,null,null,"Projektspecifika anteckningar"]
[null,"Indata till värmeförlusttal","Beräknat före åtgärd","Beräknat inför byggstart","Beräknat efter renovering"]
[null,"Um-värde",{"$f":"'B2. Indata beräkning'!C29","v":0},null,{"$f":"'B2. Indata beräkning'!F29","v":0},"W/m2K "]
[null,"Area, Atemp",{"$f":"'A. Byggnadsinfo med BBR'!D43","v":0},null,{"$f":"'A. Byggnadsinfo med BBR'!E43","v":0},"m2"]
[null,"Omslutningsarea, Aom",{"$f":"'B2. Indata beräkning'!D17","v":0},null,{"$f":"'B2. Indata beräkning'!G17","v":0},"m2"]
[null,"DVUT, ange",null,{"$f":"C8","v":0},{"$f":"C8","v":0},"C"]
[null,"FTX-verkningsgrad"]
[null,"Genomsnittligt hygieniskt ventilationsflöde, qm (qvent)",null,null,null,"l/s"]
[null,"Tilluftsflöde",null,null,null,"l/s",null,null,null,null,null,null,"Efter renovering",null,null,null,null,null,"Före åtgärd"]
[null,"Frånluftsflöde",null,null,null,"l/s",null,null,"Uppmätt värmeförlusttal efter renovering",null,null,null,"Period nr","Mätperiod","Utetemperatur","Värmeenergi","Timmedeleffekt",null,"Period nr","Mätperiod","Utetemperatur","Värmeenergi","Timmedeleffekt"]
[null,"q50",{"$f":"'B2. Indata beräkning'!C31*VFT!C7","v":0},null,{"$f":"'B2. Indata beräkning'!H31*VFT!E7","v":0},"l/s",null,null,null,{"$f":"IFERROR(IF($E$6=0,0,($C$8*J14+K14)/$E$6),0)","v":0},"W/m2Atemp",null,null,"längd, h","°C","kWh/mätperiod","Wh/h",null,null,"längd, h","°C","kWh/mätperiod","Wh/h"]
[null,"Vindskyddskoefficient e",null,null,null,null,null,null,null,{"$f":"IFERROR(LINEST(INDIRECT(ADDRESS(CELL(\"row\",Q14),CELL(\"col\",Q14))&\":\"&ADDRESS(CELL(\"row\",Q14)-1+MIN(COUNTIF(O14:O65,\"<>0\"),COUNTIF(Q14:Q65,\"<>0\")),CELL(\"col\",Q13))),INDIRECT(ADDRESS(CELL(\"row\",O14),CELL(\"col\",O14))&\":\"&ADDRESS(CELL(\"row\",O14)-1+MIN(COUNTIF(O14:O65,\"<>0\"),COUNTIF(Q14:Q65,\"<>0\")),CELL(\"col\",O13)))),\"\")","v":""},null,null,1,null,null,null,{"$f":"IF(N14=0,0,P14/N14*1000)","v":0},null,1,null,null,null,{"$f":"IF(T14=0,0,V14/T14*1000)","v":0}]
[null,"Vindskyddskoefficient f",null,null,null,null,null,null,"Uppmätt värmeförlusttal före åtgärd",null,null,null,2,null,null,null,{"$f":"IF(N15=0,0,P15/N15*1000)","v":0},null,2,null,null,null,{"$f":"IF(T15=0,0,V15/T15*1000)","v":0}]
[null,"Läckluftflöde, qläck",{"$f":"IFERROR(((C13*C7*C14)/(1+C15/C14*((C11-C12)/(C13*C7))^2)),0)","v":0},{"$f":"IFERROR(((D13*D7*D14)/(1+D15/D14*((D11-D12)/(D13*D7))^2)),0)","v":0},{"$f":"IFERROR(((E13*E7*E14)/(1+E15/E14*((E11-E12)/(E13*E7))^2)),0)","v":0},"l/s",null,null,null,{"$f":"IFERROR(IF($C$6=0,0,($C$8*J17+K17)/$C$6),0)","v":0},"W/m2Atemp",null,3,null,null,null,0,null,3,null,null,null,0]
[null,"Värmeförlustkoefficient, HT",{"$f":"C5*C7+1.2*C16+1.2*C10*(1-(C9-3)/100)","v":0},{"$f":"D5*D7+1.2*D16+1.2*D10*(1-(D9-3)/100)","v":0},{"$f":"E5*E7+1.2*E16+1.2*E10*(1-(E9-3)/100)","v":0},"W/K",null,null,null,{"$f":"IFERROR(LINEST(INDIRECT(ADDRESS(CELL(\"row\",$W$14),CELL(\"col\",$W$14))&\":\"&ADDRESS(CELL(\"row\",$W$14)-1+MIN(COUNTIF($U$14:$U$65,\"<>0\"),COUNTIF($W$14:$W$65,\"<>0\")),CELL(\"col\",$W$14))),INDIRECT(ADDRESS(CELL(\"row\",$U$14),CELL(\"col\",$U$14))&\":\"&ADDRESS(CELL(\"row\",$U$14)-1+MIN(COUNTIF($U$14:$U$65,\"<>0\"),COUNTIF($W$14:$W$65,\"<>0\")),CELL(\"col\",$U$14)))),\"\")","v":""},null,null,4,null,null,null,0,null,4,null,null,null,0]
[null,"Vämeförlusttal",{"$f":"IF(C6=0,0,C17*(21-C8)/C6)","v":0},{"$f":"IF(D6=0,0,D17*(21-D8)/D6)","v":0},0,"W/m2Atemp",null,null,null,null,null,null,5,null,null,null,0,null,5,null,null,null,0]
[null,null,null,null,null,null,null,null,null,null,null,null,6,null,null,null,0,null,6,null,null,null,0]
[null,null,null,null,null,null,null,null,null,null,null,null,7,null,null,null,0,null,7,null,null,null,0]
[null,null,null,null,null,null,null,null,null,null,null,null,8,null,null,null,0,null,8,null,null,null,0]
[null,"Enligt UHM och FEBY 18:",null,null,null,null,null,null,null,null,null,null,9,null,null,null,0,null,9,null,null,null,0]
[null,null,null,null,null,null,null,null,null,null,null,null,10,null,null,null,0,null,10,null,null,null,0]
[null,null,null,null,null,null,null,null,null,null,null,null,11,null,null,null,0,null,11,null,null,null,0]
[null,null,null,null,null,null,null,null,null,null,null,null,12,null,null,null,0,null,12,null,null,null,0]
[null,null,null,null,null,null,null,null,null,null,null,null,13,null,null,null,0,null,13,null,null,null,0]
[null,null,null,null,null,null,null,null,null,null,null,null,14,null,null,null,0,null,14,null,null,null,0]
[null,null,null,null,null,null,null,null,null,null,null,null,15,null,null,null,0,null,15,null,null,null,0]
[null,null,null,null,null,null,null,null,null,null,null,null,16,null,null,null,0,null,16,null,null,null,0]
[null,null,null,null,null,null,null,null,null,null,null,null,17,null,null,null,0,null,17,null,null,null,0]
[null,null,null,null,null,null,null,null,null,null,null,null,18,null,null,null,0,null,18,null,null,null,0]
[null,null,null,null,null,null,null,null,null,null,null,null,19,null,null,null,0,null,19,null,null,null,0]
[null,null,null,null,null,null,null,null,null,null,null,null,20,null,null,null,0,null,20,null,null,null,0]
[null,null,null,null,null,null,null,null,null,null,null,null,21,null,null,null,0,null,21,null,null,null,0]
[null,null,null,null,null,null,null,null,null,null,null,null,22,null,null,null,0,null,22,null,null,null,0]
[null,null,null,null,null,null,null,null,null,null,null,null,23,null,null,null,0,null,23,null,null,null,0]
[null,null,null,null,null,null,null,null,null,null,null,null,24,null,null,null,0,null,24,null,null,null,0]
[null,null,null,null,null,null,null,null,null,null,null,null,25,null,null,null,0,null,25,null,null,null,0]
[null,null,null,null,null,null,null,null,null,null,null,null,26,null,null,null,0,null,26,null,null,null,0]
[null,null,null,null,null,null,null,null,null,null,null,null,27,null,null,null,0,null,27,null,null,null,0]
[null,null,null,null,null,null,null,null,null,null,null,null,28,null,null,null,0,null,28,null,null,null,0]
[null,null,null,null,null,null,null,null,null,null,null,null,29,null,null,null,0,null,29,null,null,null,0]
[null,null,null,null,null,null,null,null,null,null,null,null,30,null,null,null,0,null,30,null,null,null,0]
[null,null,null,null,null,null,null,null,null,null,null,null,31,null,null,null,0,null,31,null,null,null,0]
[null,null,null,null,null,null,null,null,null,null,null,null,32,null,null,null,0,null,32,null,null,null,0]
[null,null,null,null,null,null,null,null,null,null,null,null,33,null,null,null,0,null,33,null,null,null,0]
[null,null,null,null,null,null,null,null,null,null,null,null,34,null,null,null,0,null,34,null,null,null,0]
[null,null,null,null,null,null,null,null,null,null,null,null,35,null,null,null,0,null,35,null,null,null,0]
[null,null,null,null,null,null,null,null,null,null,null,null,36,null,null,null,0,null,36,null,null,null,0]
[null,null,null,null,null,null,null,null,null,null,null,null,37,null,null,null,0,null,37,null,null,null,0]
[null,null,null,null,null,null,null,null,null,null,null,null,38,null,null,null,0,null,38,null,null,null,0]
[null,null,null,null,null,null,null,null,null,null,null,null,39,null,null,null,0,null,39,null,null,null,0]
[null,null,null,null,null,null,null,null,null,null,null,null,40,null,null,null,0,null,40,null,null,null,0]
[null,null,null,null,null,null,null,null,null,null,null,null,41,null,null,null,0,null,41,null,null,null,0]
[null,null,null,null,null,null,null,null,null,null,null,null,42,null,null,null,0,null,42,null,null,null,0]
[null,null,null,null,null,null,null,null,null,null,null,null,43,null,null,null,0,null,43,null,null,null,0]
[null,null,null,null,null,null,null,null,null,null,null,null,44,null,null,null,0,null,44,null,null,null,0]
[null,null,null,null,null,null,null,null,null,null,null,null,45,null,null,null,0,null,45,null,null,null,0]
[null,null,null,null,null,null,null,null,null,null,null,null,46,null,null,null,0,null,46,null,null,null,0]
[null,null,null,null,null,null,null,null,null,null,null,null,47,null,null,null,0,null,47,null,null,null,0]
[null,null,null,null,null,null,null,null,null,null,null,null,48,null,null,null,0,null,48,null,null,null,0]
[null,null,null,null,null,null,null,null,null,null,null,null,49,null,null,null,0,null,49,null,null,null,0]
[null,null,null,null,null,null,null,null,null,null,null,null,50,null,null,null,0,null,50,null,null,null,0]
[null,null,null,null,null,null,null,null,null,null,null,null,51,null,null,null,0,null,51,null,null,null,0]
[null,null,null,null,null,null,null,null,null,null,null,null,52,null,null,null,0,null,52,null,null,null,0]

{"sheet":"C1. Resultat mätning","index":7,"n_rows":73,"n_cols":24,"rows_kept":73,"cut":false,"hidden":false,"merged":[[7,12,7,13],[31,10,31,12],[27,10,27,12],[29,10,29,12],[23,10,23,12],[25,10,25,12],[26,10,26,12],[30,10,30,12],[19,10,19,11],[32,10,32,12],[33,10,33,12],[28,10,28,12],[40,10,40,12],[35,10,35,12],[41,10,41,12],[34,10,34,12],[38,10,38,12],[36,10,36,12],[37,10,37,12],[54,10,54,12],[55,10,55,12],[58,10,58,12],[60,10,60,12],[61,10,61,12],[57,10,57,12],[59,10,59,12],[53,10,53,12],[42,10,42,12],[43,10,43,12],[52,10,52,12],[46,10,46,12],[48,10,48,12],[47,10,47,12],[44,10,44,12],[45,10,45,12],[51,10,51,12],[49,10,49,12],[50,10,50,12],[62,10,62,12],[63,10,63,12],[64,10,64,12],[74,13,74,15],[67,10,67,12],[68,10,68,12],[70,10,70,12],[71,10,71,12],[72,10,72,12],[73,13,73,15],[69,10,69,12],[66,10,66,12],[65,10,65,12]]}
[]
[null,null,"Sammanställning av mätresultat med och utan korrigering från flikarna C2 och C3"]
[]
[null,null,"Byggnad, adress:",{"$f":"#REF!","v":{"$error":"#REF!"}},"Värmesystem:",null,null,null,"Bränsle 1",null,null,"Bränsle 2"]
[]
[null,null,"Byggherre:",{"$f":"#REF!","v":{"$error":"#REF!"}},null,null,null,null,"Källa 1",null,null,"Källa 2"]
[]
[null,null,"Riksbyggnadsnyckel:",{"$f":"#REF!","v":{"$error":"#REF!"}},"Övrig värme:"]
[]
[null,null,"Atemp:",{"$f":"#REF!","v":{"$error":"#REF!"}},null,null,null,null,null,null,null,null,null,"Solfångare",null,"m2"]
[]
[null,null,null,null,"Tappvarmvatten:",null,null,null,"Bränsle 1",null,null,"Bränsle 2"]
[]
[null,null,null,null,null,null,null,null,"Källa 1",null,null,"Källa 2"]
[]
[null,null,null,null,null,null,"Energisnåla armaturer, J/N:",null,"j"]
[]
[null,null,"Elvärmd byggnad, J/N:","j","Kylsystem:",null,null,null,null,null,null,null,null,"Solceller",null,"m2"]
[]
[null,null,"Installerad eleffekt för värme och varmvatten:",null,"Ventilation:"]
[]
[null,null,"Datum:"]
[]
[null,"Före åtgärd","Beräknad enl. relations-handling","Uppmätt/ levererad","Normaliserad med schablon","Normaliserad med upprepad energiberäk-ning",{"$f":"C24","v":"Beräknad enl. relations-handling"},{"$f":"D24","v":"Uppmätt/ levererad"},{"$f":"E24","v":"Normaliserad med schablon"},{"$f":"F24","v":"Normaliserad med upprepad energiberäk-ning"},"Anm."]
[null,null,"kWh","kWh","kWh","kWh","kWh/m2 Atemp","kWh/m2 Atemp","kWh/m2 Atemp","kWh/m2 Atemp"]
[null,"Värme exkl. tappvarmvatten och VVC",{"$f":"'B1. Resultat beräkning'!F5-'B1. Resultat beräkning'!F6","v":0},{"$f":"'C2. Inmatning och verifiering'!AA26","v":0},{"$f":"'C2. Inmatning och verifiering'!AE26","v":0},{"$f":"IF('C3. Normaliseringsunderlag'!E25>0,D26/'C3. Normaliseringsunderlag'!F25,0)","v":0},{"$f":"IFERROR(C26/'A. Byggnadsinfo med BBR'!$D$43,0)","v":0},{"$f":"IFERROR(D26/'A. Byggnadsinfo med BBR'!$E$43,0)","v":0},{"$f":"IFERROR(E26/'A. Byggnadsinfo med BBR'!$E$43,0)","v":0},{"$f":"IFERROR(F26/'A. Byggnadsinfo med BBR'!$E$43,0)","v":0}]
[null,"Tappvarmvatten",{"$f":"'B1. Resultat beräkning'!F11","v":0},{"$f":"'C2. Inmatning och verifiering'!AI26","v":0},{"$f":"IFERROR('C2. Inmatning och verifiering'!AH5*'C2. Inmatning och verifiering'!W4,0)","v":0},{"$f":"IF('C3. Normaliseringsunderlag'!E26>0,D27/'C3. Normaliseringsunderlag'!F26,0)","v":0},{"$f":"IFERROR(C27/'A. Byggnadsinfo med BBR'!$D$43,0)","v":0},{"$f":"IFERROR(D27/'A. Byggnadsinfo med BBR'!$E$43,0)","v":0},{"$f":"IFERROR(E27/'A. Byggnadsinfo med BBR'!$E$43,0)","v":0},{"$f":"IFERROR(F27/'A. Byggnadsinfo med BBR'!$E$43,0)","v":0}]
[null,"VVC-förluster",{"$f":"'B1. Resultat beräkning'!F6","v":0},{"$f":"'C2. Inmatning och verifiering'!M26+'C2. Inmatning och verifiering'!N26+'C2. Inmatning och verifiering'!O26+'C2. Inmatning och verifiering'!P26","v":0},{"$f":"D28","v":0},{"$f":"D28","v":0},{"$f":"IFERROR(C28/'A. Byggnadsinfo med BBR'!$D$43,0)","v":0},{"$f":"IFERROR(D28/'A. Byggnadsinfo med BBR'!$E$43,0)","v":0},{"$f":"IFERROR(E28/'A. Byggnadsinfo med BBR'!$E$43,0)","v":0},{"$f":"IFERROR(F28/'A. Byggnadsinfo med BBR'!$E$43,0)","v":0}]
[null,"Elkomfortkyla",{"$f":"'B1. Resultat beräkning'!F12","v":0},{"$f":"'C2. Inmatning och verifiering'!AR26","v":0},{"$f":"'C2. Inmatning och verifiering'!AU26","v":0},{"$f":"IF('C3. Normaliseringsunderlag'!E28>0,D29/'C3. Normaliseringsunderlag'!F28,0)","v":0},{"$f":"IFERROR(C29/'A. Byggnadsinfo med BBR'!$D$43,0)","v":0},{"$f":"IFERROR(D29/'A. Byggnadsinfo med BBR'!$E$43,0)","v":0},{"$f":"IFERROR(E29/'A. Byggnadsinfo med BBR'!$E$43,0)","v":0},{"$f":"IFERROR(F29/'A. Byggnadsinfo med BBR'!$E$43,0)","v":0}]
[null,"Fjärrkomfortkyla",{"$f":"'B1. Resultat beräkning'!F14","v":0},{"$f":"'C2. Inmatning och verifiering'!AQ26","v":0},{"$f":"'C2. Inmatning och verifiering'!AT26","v":0},{"$f":"IF('C3. Normaliseringsunderlag'!E29>0,D30/'C3. Normaliseringsunderlag'!F29,0)","v":0},{"$f":"IFERROR(C30/'A. Byggnadsinfo med BBR'!$D$43,0)","v":0},{"$f":"IFERROR(D30/'A. Byggnadsinfo med BBR'!$E$43,0)","v":0},{"$f":"IFERROR(E30/'A. Byggnadsinfo med BBR'!$E$43,0)","v":0},{"$f":"IFERROR(F30/'A. Byggnadsinfo med BBR'!$E$43,0)","v":0}]
[null,"Driftel exkl. värme och kyla",{"$f":"'B1. Resultat beräkning'!F16","v":0},{"$f":"'C2. Inmatning och verifiering'!AK26","v":0},{"$f":"D31","v":0},{"$f":"IF('C3. Normaliseringsunderlag'!E30>0,D31/'C3. Normaliseringsunderlag'!F30,0)","v":0},{"$f":"IFERROR(C31/'A. Byggnadsinfo med BBR'!$D$43,0)","v":0},{"$f":"IFERROR(D31/'A. Byggnadsinfo med BBR'!$E$43,0)","v":0},{"$f":"IFERROR(E31/'A. Byggnadsinfo med BBR'!$E$43,0)","v":0},{"$f":"IFERROR(F31/'A. Byggnadsinfo med BBR'!$E$43,0)","v":0}]
[]
[]
[]
[null,"Verksamhetsenergi/hushållsenergi",{"$f":"'B1. Resultat beräkning'!F21+'B1. Resultat beräkning'!F18","v":0},{"$f":"'C2. Inmatning och verifiering'!AN26","v":0},null,null,{"$f":"IFERROR(C35/'A. Byggnadsinfo med BBR'!$D$43,0)","v":0},{"$f":"IFERROR(D35/'A. Byggnadsinfo med BBR'!$E$43,0)","v":0},null,null,null,null,null,null,null,null,null,null,null,null,null,null,"Pellets","Borrhål"]
[null,"Frikyla",null,{"$f":"'C2. Inmatning och verifiering'!$AX$26","v":0},null,null,{"$f":"IFERROR(C36/'A. Byggnadsinfo med BBR'!$D$43,0)","v":0},{"$f":"IFERROR(D36/'A. Byggnadsinfo med BBR'!$E$43,0)","v":0}]
[null,"Egenproducerad el",null,{"$f":"'C2. Inmatning och verifiering'!AM26","v":0},null,null,{"$f":"IFERROR(C37/'A. Byggnadsinfo med BBR'!$D$43,0)","v":0},{"$f":"IFERROR(D37/'A. Byggnadsinfo med BBR'!$E$43,0)","v":0},null,null,null,null,null,null,null,null,null,null,null,null,null,null,"El","Ytjord"]
[null,"Solvärme",null,{"$f":"'C2. Inmatning och verifiering'!$AG$26","v":0},null,null,{"$f":"IFERROR(C38/'A. Byggnadsinfo med BBR'!$D$43,0)","v":0},{"$f":"IFERROR(D38/'A. Byggnadsinfo med BBR'!$E$43,0)","v":0},null,null,null,null,null,null,"Utveckling?",null,null,null,null,null,null,null,"Gas","Sjö"]
[null,"Specifik energianvändning",{"$f":"SUM(C26:C31)","v":0},{"$f":"SUM(D26:D31)","v":0},{"$f":"SUM(E26:E31)","v":0},{"$f":"SUM(F26:F31)","v":0},{"$f":"IFERROR(C39/'A. Byggnadsinfo med BBR'!$D$43,0)","v":0},{"$f":"IFERROR(D39/'A. Byggnadsinfo med BBR'!$E$43,0)","v":0},{"$f":"IFERROR(E39/'A. Byggnadsinfo med BBR'!$E$43,0)","v":0},{"$f":"IFERROR(F39/'A. Byggnadsinfo med BBR'!$E$43,0)","v":0},null,null,null,null,"Dela upp per energibärare?",null,null,null,null,null,null,null,"Ved","Uteluft"]
[null,null,null,null,null,null,null,null,null,null,null,null,null,null,null,null,null,null,null,null,null,null,"Olja","Frånluft"]
[null,"Efter renovering","Beräknad efter renovering",{"$f":"D24","v":"Uppmätt/ levererad"},"Normaliserad med schablon","Normaliserad med upprepad energiberäk-ning","Beräknad enl. relations-handling","Uppmätt/ levererad","Normaliserad med schablon","Normaliserad med upprepad energiberäk-ning","Anm.",null,null,null,null,null,null,null,null,null,null,null,null,"Verksamhetsenergi"]
[null,null,"kWh","kWh","kWh","kWh","kWh/m2 Atemp","kWh/m2 Atemp","kWh/m2 Atemp","kWh/m2 Atemp"]
[null,{"$f":"B26","v":"Värme exkl. tappvarmvatten och VVC"},{"$f":"C26","v":0},{"$f":"'C2. Inmatning och verifiering'!AA40","v":0},{"$f":"'C2. Inmatning och verifiering'!AE40","v":0},{"$f":"IF('C3. Normaliseringsunderlag'!E53>0,D43/'C3. Normaliseringsunderlag'!F53,0)","v":0},{"$f":"IFERROR(C43/'A. Byggnadsinfo med BBR'!$E$43,0)","v":0},{"$f":"IFERROR(D43/'A. Byggnadsinfo med BBR'!$E$43,0)","v":0},{"$f":"IFERROR(E43/'A. Byggnadsinfo med BBR'!$E$43,0)","v":0},{"$f":"IFERROR(F43/'A. Byggnadsinfo med BBR'!$E$43,0)","v":0}]
[null,{"$f":"B27","v":"Tappvarmvatten"},0,{"$f":"'C2. Inmatning och verifiering'!AI40","v":0},{"$f":"IFERROR('C2. Inmatning och verifiering'!AH6*'C2. Inmatning och verifiering'!W4,0)","v":0},{"$f":"IF('C3. Normaliseringsunderlag'!E54>0,D44/'C3. Normaliseringsunderlag'!F54,0)","v":0},{"$f":"IFERROR(C44/'A. Byggnadsinfo med BBR'!$E$43,0)","v":0},{"$f":"IFERROR(D44/'A. Byggnadsinfo med BBR'!$E$43,0)","v":0},{"$f":"IFERROR(E44/'A. Byggnadsinfo med BBR'!$E$43,0)","v":0},{"$f":"IFERROR(F44/'A. Byggnadsinfo med BBR'!$E$43,0)","v":0}]
[null,"VVC-förluster",0,{"$f":"'C2. Inmatning och verifiering'!M40+'C2. Inmatning och verifiering'!N40+'C2. Inmatning och verifiering'!O40+'C2. Inmatning och verifiering'!P40","v":0},{"$f":"D45","v":0},{"$f":"D45","v":0},{"$f":"IFERROR(C45/'A. Byggnadsinfo med BBR'!$E$43,0)","v":0},{"$f":"IFERROR(D45/'A. Byggnadsinfo med BBR'!$E$43,0)","v":0},{"$f":"IFERROR(E45/'A. Byggnadsinfo med BBR'!$E$43,0)","v":0},{"$f":"IFERROR(F45/'A. Byggnadsinfo med BBR'!$E$43,0)","v":0}]
[null,"Elkomfortkyla",0,{"$f":"'C2. Inmatning och verifiering'!AR40","v":0},{"$f":"'C2. Inmatning och verifiering'!AU40","v":0},{"$f":"IF('C3. Normaliseringsunderlag'!E56>0,D46/'C3. Normaliseringsunderlag'!F56,0)","v":0},{"$f":"IFERROR(C46/'A. Byggnadsinfo med BBR'!$E$43,0)","v":0},{"$f":"IFERROR(D46/'A. Byggnadsinfo med BBR'!$E$43,0)","v":0},{"$f":"IFERROR(E46/'A. Byggnadsinfo med BBR'!$E$43,0)","v":0},{"$f":"IFERROR(F46/'A. Byggnadsinfo med BBR'!$E$43,0)","v":0}]
[null,"Fjärrkomfortkyla",0,{"$f":"'C2. Inmatning och verifiering'!AQ40","v":0},{"$f":"'C2. Inmatning och verifiering'!AT40","v":0},{"$f":"IF('C3. Normaliseringsunderlag'!E57>0,D47/'C3. Normaliseringsunderlag'!F57,0)","v":0},{"$f":"IFERROR(C47/'A. Byggnadsinfo med BBR'!$E$43,0)","v":0},{"$f":"IFERROR(D47/'A. Byggnadsinfo med BBR'!$E$43,0)","v":0},{"$f":"IFERROR(E47/'A. Byggnadsinfo med BBR'!$E$43,0)","v":0},{"$f":"IFERROR(F47/'A. Byggnadsinfo med BBR'!$E$43,0)","v":0}]
[null,"Driftel exkl. värme och kyla",0,{"$f":"'C2. Inmatning och verifiering'!AK40","v":0},{"$f":"D48","v":0},{"$f":"IF('C3. Normaliseringsunderlag'!E58>0,D48/'C3. Normaliseringsunderlag'!F58,0)","v":0},{"$f":"IFERROR(C48/'A. Byggnadsinfo med BBR'!$E$43,0)","v":0},{"$f":"IFERROR(D48/'A. Byggnadsinfo med BBR'!$E$43,0)","v":0},{"$f":"IFERROR(E48/'A. Byggnadsinfo med BBR'!$E$43,0)","v":0},{"$f":"IFERROR(F48/'A. Byggnadsinfo med BBR'!$E$43,0)","v":0}]
[null,0]
[null,0]
[null,0]
[null,"Verksamhetsenergi/hushållsenergi",{"$f":"'B1. Resultat beräkning'!F21+'B1. Resultat beräkning'!F18","v":0},{"$f":"'C2. Inmatning och verifiering'!AN40","v":0},null,null,{"$f":"IFERROR(C52/'A. Byggnadsinfo med BBR'!$E$43,0)","v":0},{"$f":"IFERROR(D52/'A. Byggnadsinfo med BBR'!$E$43,0)","v":0}]
[null,"Frikyla",null,{"$f":"'C2. Inmatning och verifiering'!$AX$40","v":0},null,null,{"$f":"IFERROR(C53/'A. Byggnadsinfo med BBR'!$E$43,0)","v":0},{"$f":"IFERROR(D53/'A. Byggnadsinfo med BBR'!$E$43,0)","v":0}]
[null,"Egenproducerad el",null,{"$f":"'C2. Inmatning och verifiering'!AM40","v":0},null,null,{"$f":"IFERROR(C54/'A. Byggnadsinfo med BBR'!$E$43,0)","v":0},{"$f":"IFERROR(D54/'A. Byggnadsinfo med BBR'!$E$43,0)","v":0}]
[null,"Solvärme",null,{"$f":"'C2. Inmatning och verifiering'!$AG$40","v":0},null,null,{"$f":"IFERROR(C55/'A. Byggnadsinfo med BBR'!$E$43,0)","v":0},{"$f":"IFERROR(D55/'A. Byggnadsinfo med BBR'!$E$43,0)","v":0}]
[null,{"$f":"B39","v":"Specifik energianvändning"},{"$f":"SUM(C43:C48)","v":0},{"$f":"SUM(D43:D48)","v":0},{"$f":"IFERROR(SUM(E43:E48),0)","v":0},{"$f":"SUM(F43:F48)","v":0},{"$f":"IFERROR(C56/'A. Byggnadsinfo med BBR'!$E$43,0)","v":0},{"$f":"IFERROR(D56/'A. Byggnadsinfo med BBR'!$E$43,0)","v":0},{"$f":"IFERROR(E56/'A. Byggnadsinfo med BBR'!$E$43,0)","v":0},{"$f":"IFERROR(F56/'A. Byggnadsinfo med BBR'!$E$43,0)","v":0}]
[]
[null,"Efter renovering år 2",{"$f":"C41","v":"Beräknad efter renovering"},{"$f":"D24","v":"Uppmätt/ levererad"},"Normaliserad med schablon","Normaliserad med upprepad energiberäk-ning","Beräknad enl. relations-handling","Uppmätt/ levererad","Normaliserad med schablon","Normaliserad med upprepad energiberäk-ning","Anm."]
[null,null,"kWh","kWh","kWh","kWh","kWh/m2 Atemp","kWh/m2 Atemp","kWh/m2 Atemp","kWh/m2 Atemp"]
[null,{"$f":"B26","v":"Värme exkl. tappvarmvatten och VVC"},{"$f":"C26","v":0},{"$f":"'C2. Inmatning och verifiering'!AA54","v":0},{"$f":"'C2. Inmatning och verifiering'!AE54","v":0},{"$f":"IF('C3. Normaliseringsunderlag'!E81>0,D60/'C3. Normaliseringsunderlag'!F81,0)","v":0},{"$f":"IFERROR(C60/'A. Byggnadsinfo med BBR'!$E$43,0)","v":0},{"$f":"IFERROR(D60/'A. Byggnadsinfo med BBR'!$E$43,0)","v":0},{"$f":"IFERROR(E60/'A. Byggnadsinfo med BBR'!$E$43,0)","v":0},{"$f":"IFERROR(F60/'A. Byggnadsinfo med BBR'!$E$43,0)","v":0}]
[null,{"$f":"B27","v":"Tappvarmvatten"},0,{"$f":"'C2. Inmatning och verifiering'!AI54","v":0},{"$f":"IFERROR('C2. Inmatning och verifiering'!AH7*'C2. Inmatning och verifiering'!W4,0)","v":0},{"$f":"IF('C3. Normaliseringsunderlag'!E82>0,D61/'C3. Normaliseringsunderlag'!F82,0)","v":0},{"$f":"IFERROR(C61/'A. Byggnadsinfo med BBR'!$E$43,0)","v":0},{"$f":"IFERROR(D61/'A. Byggnadsinfo med BBR'!$E$43,0)","v":0},{"$f":"IFERROR(E61/'A. Byggnadsinfo med BBR'!$E$43,0)","v":0},{"$f":"IFERROR(F61/'A. Byggnadsinfo med BBR'!$E$43,0)","v":0}]
[null,"VVC-förluster",0,{"$f":"'C2. Inmatning och verifiering'!M54+'C2. Inmatning och verifiering'!N54+'C2. Inmatning och verifiering'!O54+'C2. Inmatning och verifiering'!P54","v":0},{"$f":"D62","v":0},{"$f":"D62","v":0},{"$f":"IFERROR(C62/'A. Byggnadsinfo med BBR'!$E$43,0)","v":0},{"$f":"IFERROR(D62/'A. Byggnadsinfo med BBR'!$E$43,0)","v":0},{"$f":"IFERROR(E62/'A. Byggnadsinfo med BBR'!$E$43,0)","v":0},{"$f":"IFERROR(F62/'A. Byggnadsinfo med BBR'!$E$43,0)","v":0}]
[null,"Elkomfortkyla",0,{"$f":"'C2. Inmatning och verifiering'!AR54","v":0},{"$f":"'C2. Inmatning och verifiering'!AU54","v":0},{"$f":"IF('C3. Normaliseringsunderlag'!E84>0,D63/'C3. Normaliseringsunderlag'!F842,0)","v":0},{"$f":"IFERROR(C63/'A. Byggnadsinfo med BBR'!$E$43,0)","v":0},{"$f":"IFERROR(D63/'A. Byggnadsinfo med BBR'!$E$43,0)","v":0},{"$f":"IFERROR(E63/'A. Byggnadsinfo med BBR'!$E$43,0)","v":0},{"$f":"IFERROR(F63/'A. Byggnadsinfo med BBR'!$E$43,0)","v":0}]
[null,"Fjärrkomfortkyla",0,{"$f":"'C2. Inmatning och verifiering'!AQ54","v":0},{"$f":"'C2. Inmatning och verifiering'!AT54","v":0},{"$f":"IF('C3. Normaliseringsunderlag'!E85>0,D64/'C3. Normaliseringsunderlag'!F85,0)","v":0},{"$f":"IFERROR(C64/'A. Byggnadsinfo med BBR'!$E$43,0)","v":0},{"$f":"IFERROR(D64/'A. Byggnadsinfo med BBR'!$E$43,0)","v":0},{"$f":"IFERROR(E64/'A. Byggnadsinfo med BBR'!$E$43,0)","v":0},{"$f":"IFERROR(F64/'A. Byggnadsinfo med BBR'!$E$43,0)","v":0}]
[null,"Driftel exkl. värme och kyla",0,{"$f":"'C2. Inmatning och verifiering'!AK54","v":0},{"$f":"D65","v":0},{"$f":"IF('C3. Normaliseringsunderlag'!E86>0,D65/'C3. Normaliseringsunderlag'!F86,0)","v":0},{"$f":"IFERROR(C65/'A. Byggnadsinfo med BBR'!$E$43,0)","v":0},{"$f":"IFERROR(D65/'A. Byggnadsinfo med BBR'!$E$43,0)","v":0},{"$f":"IFERROR(E65/'A. Byggnadsinfo med BBR'!$E$43,0)","v":0},{"$f":"IFERROR(F65/'A. Byggnadsinfo med BBR'!$E$43,0)","v":0}]
[null,0]
[null,0]
[null,0]
[null,"Verksamhetsenergi/hushållsenergi",{"$f":"'B1. Resultat beräkning'!F21+'B1. Resultat beräkning'!F18","v":0},{"$f":"'C2. Inmatning och verifiering'!AN54","v":0},null,null,{"$f":"IFERROR(C69/'A. Byggnadsinfo med BBR'!$E$43,0)","v":0},{"$f":"IFERROR(D69/'A. Byggnadsinfo med BBR'!$E$43,0)","v":0}]
[null,"Frikyla",null,{"$f":"'C2. Inmatning och verifiering'!$AX$54","v":0},null,null,{"$f":"IFERROR(C70/'A. Byggnadsinfo med BBR'!$E$43,0)","v":0},{"$f":"IFERROR(D70/'A. Byggnadsinfo med BBR'!$E$43,0)","v":0}]
[null,"Egenproducerad el",null,{"$f":"'C2. Inmatning och verifiering'!AM54","v":0},null,null,{"$f":"IFERROR(C71/'A. Byggnadsinfo med BBR'!$E$43,0)","v":0},{"$f":"IFERROR(D71/'A. Byggnadsinfo med BBR'!$E$43,0)","v":0}]
[null,"Solvärme",null,{"$f":"'C2. Inmatning och verifiering'!$AG$54","v":0},null,null,{"$f":"IFERROR(C72/'A. Byggnadsinfo med BBR'!$E$43,0)","v":0},{"$f":"IFERROR(D72/'A. Byggnadsinfo med BBR'!$E$43,0)","v":0}]
[null,"Specifik energianvändning",{"$f":"SUM(C60:C65)","v":0},{"$f":"SUM(D60:D65)","v":0},{"$f":"SUM(E60:E65)","v":0},{"$f":"SUM(F60:F65)","v":0},{"$f":"IFERROR(C73/'A. Byggnadsinfo med BBR'!$E$43,0)","v":0},{"$f":"IFERROR(D73/'A. Byggnadsinfo med BBR'!$E$43,0)","v":0},{"$f":"IFERROR(E73/'A. Byggnadsinfo med BBR'!$E$43,0)","v":0},{"$f":"IFERROR(F73/'A. Byggnadsinfo med BBR'!$E$43,0)","v":0}]

{"sheet":"C2. Inmatning och verifiering","index":8,"n_rows":70,"n_cols":50,"rows_kept":70,"cut":false,"hidden":false,"merged":[[1,31,2,31],[1,32,2,32],[1,34,2,34],[1,33,2,33],[1,30,2,30],[1,29,2,29],[4,8,4,11],[6,8,6,11],[7,8,7,11],[5,8,5,11]]}
[null,null,null,null,null,null,null,null,null,null,null,null,null,"Normaliseringsunderlag för innetemperatur och hushålls-/verksamhetsenergi",null,null,null,null,null,null,null,null,null,null,null,null,null,null,null,"Normalisering av energi för tappvarmvatten",null,null,null,null,null,"Verkningsgrader TVV enligt BEN2"]
[null,null,null,null,"Inmatningssida för mätvärden och beräknade värden ",null,null,null,null,null,null,null,null,null,"Indatavärden",null,"Enhet","Beräknad brukarindata","Uppmätt brukarindata","Avvikelse brukarindata",null,null,null,null,null,null,null,null,null,null,"TVV vid normalt brukande","Med korrigering för energisnåla armaturer","Tillgodoräk-nad solvärme eller avloppsvärme-växlare","Normalt tappvarm-vatten med korrigering för verkningsgrad m.m.","Uppmätt tappvarm-vatten"]
[null,null,null,null,null,null,null,null,null,null,null,null,null,"Före åtgärd","Innetemperatur, vinter",null,"°C",null,null,{"$f":"S3-R3","v":0},null,"Andel bostad",{"$f":"'A. Byggnadsinfo med BBR'!E45","v":0},"%"]
[null,null,"ByggnadsID:",{"$f":"'A. Byggnadsinfo med BBR'!C9","v":0},null,null,null,null,null,"Projektspecifika anteckningar",null,null,null,null,"Verksamhets-/Hushållsenergi",null,"kWh/m2Atemp",null,null,0,null,"Atemp",{"$f":"'A. Byggnadsinfo med BBR'!E43","v":0},"m2",null,null,null,null,null,null,"kWh/m2Atemp","kWh/m2Atemp","kWh/m2Atemp","kWh/m2Atemp","kWh/m2Atemp"]
[null,null,null,null,"Startmånad för mätning:",null,null,"Värme:",null,null,null,null,null,"Efter åtgärd","Innetemperatur, vinter",null,"°C",null,null,0,null,"Energieff. blandare",null,"Rullist JA/NEJ",null,null,null,null,null,"Före åtgärd",{"$f":"W$3/100*25+(1-W$3/100)*2","v":2},{"$f":"IF(W$5=\"j\",AE5*0.9,AE5)","v":2},{"$f":"IFERROR((-V$26/W$4)*(AI$26+V$26)/W$4/AF5,0)","v":0},{"$f":"IF(W$7=0,(AF5+AG5),(AF5+AG5)/W$7)","v":2},{"$f":"IFERROR(AI26/$W$4,0)","v":0}]
[null,null,null,null,"Metod för klimatkorrigering värme:",null,null,"Tappvarmvatten:",null,null,null,null,null,null,"Verksamhets-/Hushållsenergi",null,"kWh/m2Atemp",null,null,0,null,"SCOP värme",1,null,null,null,null,null,null,"Efter åtgärd",{"$f":"W$3/100*25+(1-W$3/100)*2","v":2},{"$f":"IF(W$5=\"j\",AE6*0.9,AE6)","v":2},{"$f":"IFERROR((-V$26/W$4)*(AI$26+V$26)/W$4/AF6,0)","v":0},{"$f":"IF(W$7=0,(AF6+AG6),(AF6+AG6)/W$7)","v":2},{"$f":"IFERROR(AI40/$W$4,0)","v":0}]
[null,null,null,null,"Ort för klimatkorrigering:",null,null,"El:",null,null,null,null,null,"År 2 ","Innetemperatur, vinter",null,"°C",null,null,0,null,"SCOP TVV",1,null,null,null,null,null,null,"År 2 efter åtg.",{"$f":"W$3/100*25+(1-W$3/100)*2","v":2},{"$f":"IF(W$5=\"j\",AE7*0.9,AE7)","v":2},{"$f":"IFERROR((-V$26/W$4)*(AI$26+V$26)/W$4/AF7,0)","v":0},{"$f":"IF(W$7=0,(AF7+AG7),(AF7+AG7)/W$7)","v":2},{"$f":"IFERROR(AI54/$W$4,0)","v":0}]
[null,null,null,null,"Metod för klimatkorrigering kyla:",null,null,"Komfortkyla:",null,null,null,null,null,"Efter åtgärd","Verksamhets-/Hushållsenergi",null,"kWh/m2Atemp",null,null,0]
[null,"Debiteringsmätare per energibärare",null,null,null,null,"VP","Korrigering för BBR-avgränsning per energibärare",null,null,null,null,"Uppmätta VVC-förluster per energibärare",null,null,null,"Uppmätt tappvarmvatten per energibärare",null,null,null,null,null,"Uppvärmning per energibärare",null,null,null,"Brukar- och klimatnormalisering uppvärmning",null,null,null,"Jämför uppmätt och ber. uppv.",null,null,"Normalisering TVV",null,"Uppmätt el",null,"Jfr",null,null,"Uppmätt kyla",null,null,null,null,"Jfr","Jfr","Jfr","Jfr"]
["Mätvärden:",null,null,null,null,null,"BVP inkl tvv",null,"Ute",null,null,null,null,null,null,null,null,null,"BVP",null,null,null,null,"BVP",null,null,null,null,null,null,"inkl vvc","inkl vvc"]
[null,"Köpt fjärrvärme","Köpt el","Köpt fjärrkyla","Köpt biobränsle","Köpt fossil olja och gas","El till värmepump","Korrigering BBR-avgränsn. fjärrvärme","Korrigering BBR-avgränsn. el","Korrigering BBR-avgränsn. fjärrkyla","Korrigering BBR-avgränsn. biobränsle","Korrigering BBR-avgränsn. olja och gas","VVC-förluster fjärrvärme","VVC-förluster el","VVC-förluster biobränsle","VVC-förluster olja och gas","Tappvarm-vatten-användn. från volymmät-ning","Tappvarm-vatten fjärrvärme","Tappvarm-vatten el","Tappvarm-vatten biobränsle","Tappvarm-vatten olja och gas","Tappvarm-vatten återvinning och solbidrag","Uppvärm-ning  fjärrvärme","Uppvärm-ning el","Uppvärm-ning biobränsle","Uppvärm-ning olja och gas","Summa uppvärm-ning","Korrigering till  normal inne-temperatur","Korrigering till normal hushållsel/ verksamhets-el","Värme- divisor","Normaliserad uppvärmning.","Beräknad uppvärmning per månad (exkl VVC)","Solvärme till upp-värmning","Korrigering BBR-avgränsning","Summa uppmätt tappvarm-vatten","Korr för BBR-avgränsning","Fastighetsel ","Beräknad fastighetsel","Egen-producerad el","Verksamhetsel/Hushållsel","Köpt elkyla","Process-elkyla","Komfortkyla fjärrkyla","Komfortkyla elkyla","Kyla-divisor","Korrigerad och norma-liserad komfortkyla fjärrkyla","Korrigerad och norma-liserad komfortkyla elkyla","Beräknad komfortkyla fjärrkyla","Beräknad komfortkyla elkyla","Frikyla"]
["Månad nr","kWh","kWh","kWh","kWh","kWh","kWh","kWh","kWh","kWh","kWh","kWh","kWh","kWh","kWh","kWh","m3","kWh","kWh","kWh","kWh","kWh","kWh","kWh","kWh","kWh","kWh","kWh","kWh",null,"kWh","kWh","kWh","kWh","kWh","kWh","kWh","kWh","kWh","kWh","kWh","kWh","kWh","kWh",null,"kWh","kWh","kWh","kWh","kWh"]
[1,null,null,null,null,null,null,null,null,null,null,null,null,null,null,null,null,null,{"$f":"Q13*55/$W$7","v":0},null,null,null,{"$f":"B13-H13-M13-R13","v":0},{"$f":"G13-S13","v":0},{"$f":"E13-K13-O13-T13","v":0},{"$f":"F13-L13-P13-U13","v":0},{"$f":"W13+X13+Y13+Z13","v":0},{"$f":"IF(AA13>0,-0.05*AA13*T$3,0)","v":0},{"$f":"IF(AA13>0,0.7*T$4*W$4/W$6*720/8760,0)","v":0},null,{"$f":"IF(AD13=0,0,(AA13+AB13+AC13)/AD13)","v":0},null,null,null,{"$f":"R13+S13+T13+U13-V13+AH13","v":0},null,{"$f":"C13-I13-N13-S13-X13+AJ13","v":0},null,null,null,null,null,{"$f":"D13-J13","v":0},{"$f":"AO13-AP13","v":0},null,{"$f":"IF(AS13>0,AQ13/AS13,0)","v":0},{"$f":"IF(AS13>0,AR13/AS13,0)","v":0}]
[2,null,null,null,null,null,null,null,null,null,null,null,null,null,null,null,null,null,0,null,null,null,0,{"$f":"G14-S14","v":0},{"$f":"E14-K14-O14-T14","v":0},{"$f":"F14-L14-P14-U14","v":0},{"$f":"W14+X14+Y14+Z14","v":0},0,0,null,{"$f":"IF(AD14=0,0,(AA14+AB14+AC14)/AD14)","v":0},null,null,null,0,null,{"$f":"C14-I14-N14-S14-X14+AJ14","v":0},null,null,null,null,null,0,{"$f":"AO14-AP14","v":0},null,{"$f":"IF(AS14>0,AQ14/AS14,0)","v":0},{"$f":"IF(AS14>0,AR14/AS14,0)","v":0}]
[3,null,null,null,null,null,null,null,null,null,null,null,null,null,null,null,null,null,0,null,null,null,0,0,0,0,0,0,0,null,0,null,null,null,0,null,0,null,null,null,null,null,0,0,null,0,0]
[4,null,null,null,null,null,null,null,null,null,null,null,null,null,null,null,null,null,0,null,null,null,0,0,0,0,0,0,0,null,0,null,null,null,0,null,0,null,null,null,null,null,0,0,null,0,0]
[5,null,null,null,null,null,null,null,null,null,null,null,null,null,null,null,null,null,0,null,null,null,0,0,0,0,0,0,0,null,0,null,null,null,0,null,0,null,null,null,null,null,0,0,null,0,0]
[6,null,null,null,null,null,null,null,null,null,null,null,null,null,null,null,null,null,0,null,null,null,0,0,0,0,0,0,0,null,0,null,null,null,0,null,0,null,null,null,null,null,0,0,null,0,0]
[7,null,null,null,null,null,null,null,null,null,null,null,null,null,null,null,null,null,0,null,null,null,0,0,0,0,0,0,0,null,0,null,null,null,0,null,0,null,null,null,null,null,0,0,null,0,0]
[8,null,null,null,null,null,null,null,null,null,null,null,null,null,null,null,null,null,0,null,null,null,0,0,0,0,0,0,0,null,0,null,null,null,0,null,0,null,null,null,null,null,0,0,null,0,0]
[9,null,null,null,null,null,null,null,null,null,null,null,null,null,null,null,null,null,0,null,null,null,0,0,0,0,0,0,0,null,0,null,null,null,0,null,0,null,null,null,null,null,0,0,null,0,0]
[10,null,null,null,null,null,null,null,null,null,null,null,null,null,null,null,null,null,0,null,null,null,0,0,0,0,0,0,0,null,0,null,null,null,0,null,0,null,null,null,null,null,0,0,null,0,0]
[11,null,null,null,null,null,null,null,null,null,null,null,null,null,null,null,null,null,0,null,null,null,0,0,0,0,0,0,0,null,0,null,null,null,0,null,0,null,null,null,null,null,0,0,null,0,0]
[12,null,null,null,null,null,null,null,null,null,null,null,null,null,null,null,null,null,0,null,null,null,0,0,0,0,0,0,0,null,0,null,null,null,0,null,0,null,null,null,null,null,0,0,null,0,0]
["Helår",null,null,null,null,null,null,null,null,null,null,null,null,null,null,null,null,null,0,null,null,null,0,0,{"$f":"E25-K25-O25-T25","v":0},0,{"$f":"W25+X25+Y25+Z25","v":0},0,{"$f":"IF(AA25>0,0.7*T$4*W$4/W$6*720*8/8760,0)","v":0},null,0,null,null,null,{"$f":"R25+S25+T25+U25-V25+AH25","v":0},null,0,null,null,null,null,null,0,0,null,0,0]
["Summa före åtgärd",{"$f":"IF(B25>0,B25,SUM(B13:B24))","v":0},0,0,0,0,0,0,0,0,0,0,0,0,0,0,{"$f":"IF(Q25>0,Q25,SUM(Q13:Q24))","v":0},0,0,0,0,0,0,0,0,0,0,0,0,{"$f":"IF(AD25>0,AD25,\"-\")","v":"-"},{"$f":"IF(AE25>0,AE25,SUM(AE13:AE24))","v":0},0,0,0,0,0,0,{"$f":"IF(AL25>0,AL25,SUM(AL13:AL24))","v":0},0,0,0,0,0,0,{"$f":"IF(AS25>0,AS25,\"-\")","v":"-"},{"$f":"IF(AT25>0,AT25,SUM(AT13:AT24))","v":0},{"$f":"IF(AU25>0,AU25,SUM(AU13:AU24))","v":0},{"$f":"IF(AV25>0,AV25,SUM(AV13:AV24))","v":0},{"$f":"IF(AW25>0,AW25,SUM(AW13:AW24))","v":0},{"$f":"IF(AX25>0,AX25,SUM(AX13:AX24))","v":0}]
[13,null,null,null,null,null,null,null,null,null,null,null,null,null,null,null,null,null,0,null,null,null,{"$f":"B27-H27-M27-R27","v":0},0,{"$f":"E27-K27-O27-T27","v":0},{"$f":"F27-L27-P27-U27","v":0},{"$f":"W27+X27+Y27+Z27","v":0},{"$f":"IF(AA27>0,-0.05*AA27*T$5,0)","v":0},{"$f":"IF(AA27>0,0.7*T$6*W$4/W$6*720/8760,0)","v":0},null,{"$f":"IF(AD27=0,0,(AA27+AB27+AC27)/AD27)","v":0},null,null,null,0,null,{"$f":"C27-I27-N27-S27-X27+AJ27","v":0},null,null,null,null,null,{"$f":"D27-J27","v":0},{"$f":"AO27-AP27","v":0},null,{"$f":"IF(AS27>0,AQ27/AS27,0)","v":0},{"$f":"IF(AS27>0,AR27/AS27,0)","v":0}]
[14,null,null,null,null,null,null,null,null,null,null,null,null,null,null,null,null,null,0,null,null,null,0,0,0,0,0,0,0,null,{"$f":"IF(AD28=0,0,(AA28+AB28+AC28)/AD28)","v":0},null,null,null,0,null,0,null,null,null,null,null,0,{"$f":"AO28-AP28","v":0},null,{"$f":"IF(AS28>0,AQ28/AS28,0)","v":0},{"$f":"IF(AS28>0,AR28/AS28,0)","v":0}]
[15,null,null,null,null,null,null,null,null,null,null,null,null,null,null,null,null,null,0,null,null,null,0,0,0,0,0,0,0,null,0,null,null,null,0,null,0,null,null,null,null,null,0,0,null,0,0]
[16,null,null,null,null,null,null,null,null,null,null,null,null,null,null,null,null,null,0,null,null,null,0,0,0,0,0,0,0,null,0,null,null,null,0,null,0,null,null,null,null,null,0,0,null,0,0]
[17,null,null,null,null,null,null,null,null,null,null,null,null,null,null,null,null,null,0,null,null,null,0,0,0,0,0,0,0,null,0,null,null,null,0,null,0,null,null,null,null,null,0,0,null,0,0]
[18,null,null,null,null,null,null,null,null,null,null,null,null,null,null,null,null,null,0,null,null,null,0,0,0,0,0,0,0,null,0,null,null,null,0,null,0,null,null,null,null,null,0,0,null,0,0]
[19,null,null,null,null,null,null,null,null,null,null,null,null,null,null,null,null,null,0,null,null,null,0,0,0,0,0,0,0,null,0,null,null,null,0,null,0,null,null,null,null,null,0,0,null,0,0]
[20,null,null,null,null,null,null,null,null,null,null,null,null,null,null,null,null,null,0,null,null,null,0,0,0,0,0,0,0,null,0,null,null,null,0,null,0,null,null,null,null,null,0,0,null,0,0]
[21,null,null,null,null,null,null,null,null,null,null,null,null,null,null,null,null,null,0,null,null,null,0,0,0,0,0,0,0,null,0,null,null,null,0,null,0,null,null,null,null,null,0,0,null,0,0]
[22,null,null,null,null,null,null,null,null,null,null,null,null,null,null,null,null,null,0,null,null,null,0,0,0,0,0,0,0,null,0,null,null,null,0,null,0,null,null,null,null,null,0,0,null,0,0]
[23,null,null,null,null,null,null,null,null,null,null,null,null,null,null,null,null,null,0,null,null,null,0,0,0,0,0,0,0,null,0,null,null,null,0,null,0,null,null,null,null,null,0,0,null,0,0]
[24,null,null,null,null,null,null,null,null,null,null,null,null,null,null,null,null,null,0,null,null,null,0,0,0,0,0,0,0,null,0,null,null,null,0,null,0,null,null,null,null,null,0,0,null,0,0]
["Helår",null,null,null,null,null,null,null,null,null,null,null,null,null,null,null,null,null,0,null,null,null,0,0,0,0,0,0,{"$f":"IF(AA39>0,0.7*T$6*W$4/W$6*720*8/8760,0)","v":0},null,0,null,null,null,0,null,0,null,null,null,null,null,0,0,null,0,0]
["Summa efter åtgärd",{"$f":"IF(B39>0,B39,SUM(B27:B38))","v":0},{"$f":"IF(C39>0,C39,SUM(C27:C38))","v":0},0,0,0,0,0,0,0,{"$f":"IF(K39>0,K39,SUM(K27:K38))","v":0},0,0,0,0,0,0,0,0,0,0,0,{"$f":"IF(W39>0,W39,SUM(W27:W38))","v":0},0,0,0,0,0,0,{"$f":"IF(AD39>0,AD39,\"-\")","v":"-"},{"$f":"IF(AE39>0,AE39,SUM(AE27:AE38))","v":0},0,0,0,0,0,0,{"$f":"IF(AL39>0,AL39,SUM(AL27:AL38))","v":0},0,0,0,0,0,0,{"$f":"IF(AS39>0,AS39,\"-\")","v":"-"},{"$f":"IF(AT39>0,AT39,SUM(AT27:AT38))","v":0},{"$f":"IF(AU39>0,AU39,SUM(AU27:AU38))","v":0},{"$f":"IF(AV39>0,AV39,SUM(AV27:AV38))","v":0},{"$f":"IF(AW39>0,AW39,SUM(AW27:AW38))","v":0},{"$f":"IF(AX39>0,AX39,SUM(AX27:AX38))","v":0}]
[25,null,null,null,null,null,null,null,null,null,null,null,null,null,null,null,null,null,0,null,null,null,{"$f":"B41-H41-M41-R41","v":0},0,{"$f":"E41-K41-O41-T41","v":0},{"$f":"F41-L41-P41-U41","v":0},{"$f":"W41+X41+Y41+Z41","v":0},{"$f":"IF(AA41>0,-0.05*AA41*T$7,0)","v":0},{"$f":"IF(AA41>0,0.7*T$8*W$4/W$6*720/8760,0)","v":0},null,{"$f":"IF(AD41=0,0,(AA41+AB41+AC41)/AD41)","v":0},null,null,null,0,null,{"$f":"C41-I41-N41-S41-X41+AJ41","v":0},null,null,null,null,null,{"$f":"D41-J41","v":0},{"$f":"AO41-AP41","v":0},null,{"$f":"IF(AS41>0,AQ41/AS41,0)","v":0},{"$f":"IF(AS41>0,AR41/AS41,0)","v":0}]
[26,null,null,null,null,null,null,null,null,null,null,null,null,null,null,null,null,null,0,null,null,null,0,0,0,0,0,0,0,null,{"$f":"IF(AD42=0,0,(AA42+AB42+AC42)/AD42)","v":0},null,null,null,0,null,0,null,null,null,null,null,0,{"$f":"AO42-AP42","v":0},null,{"$f":"IF(AS42>0,AQ42/AS42,0)","v":0},{"$f":"IF(AS42>0,AR42/AS42,0)","v":0}]
[27,null,null,null,null,null,null,null,null,null,null,null,null,null,null,null,null,null,0,null,null,null,0,0,0,0,0,0,0,null,0,null,null,null,0,null,0,null,null,null,null,null,0,0,null,0,0]
[28,null,null,null,null,null,null,null,null,null,null,null,null,null,null,null,null,null,0,null,null,null,0,0,0,0,0,0,0,null,0,null,null,null,0,null,0,null,null,null,null,null,0,0,null,0,0]
[29,null,null,null,null,null,null,null,null,null,null,null,null,null,null,null,null,null,0,null,null,null,0,0,0,0,0,0,0,null,0,null,null,null,0,null,0,null,null,null,null,null,0,0,null,0,0]
[30,null,null,null,null,null,null,null,null,null,null,null,null,null,null,null,null,null,0,null,null,null,0,0,0,0,0,0,0,null,0,null,null,null,0,null,0,null,null,null,null,null,0,0,null,0,0]
[31,null,null,null,null,null,null,null,null,null,null,null,null,null,null,null,null,null,0,null,null,null,0,0,0,0,0,0,0,null,0,null,null,null,0,null,0,null,null,null,null,null,0,0,null,0,0]
[32,null,null,null,null,null,null,null,null,null,null,null,null,null,null,null,null,null,0,null,null,null,0,0,0,0,0,0,0,null,0,null,null,null,0,null,0,null,null,null,null,null,0,0,null,0,0]
[33,null,null,null,null,null,null,null,null,null,null,null,null,null,null,null,null,null,0,null,null,null,0,0,0,0,0,0,0,null,0,null,null,null,0,null,0,null,null,null,null,null,0,0,null,0,0]
[34,null,null,null,null,null,null,null,null,null,null,null,null,null,null,null,null,null,0,null,null,null,0,0,0,0,0,0,0,null,0,null,null,null,0,null,0,null,null,null,null,null,0,0,null,0,0]
[35,null,null,null,null,null,null,null,null,null,null,null,null,null,null,null,null,null,0,null,null,null,0,0,0,0,0,0,0,null,0,null,null,null,0,null,0,null,null,null,null,null,0,0,null,0,0]
[36,null,null,null,null,null,null,null,null,null,null,null,null,null,null,null,null,null,0,null,null,null,0,0,0,0,0,0,0,null,0,null,null,null,0,null,0,null,null,null,null,null,0,0,null,0,0]
["Helår",null,null,null,null,null,null,null,null,null,null,null,null,null,null,null,null,null,0,null,null,null,0,0,0,0,0,0,{"$f":"IF(AA53>0,0.7*T$8*W$4/W$6*720*8/8760,0)","v":0},null,0,null,null,null,0,null,0,null,null,null,null,null,0,0,null,0,0]
["Summa år 2 efter",{"$f":"IF(B53>0,B53,SUM(B41:B52))","v":0},{"$f":"IF(C53>0,C53,SUM(C41:C52))","v":0},0,0,0,0,0,0,0,0,0,{"$f":"IF(M53>0,M53,SUM(M41:M52))","v":0},{"$f":"IF(N53>0,N53,SUM(N41:N52))","v":0},{"$f":"IF(O53>0,O53,SUM(O41:O52))","v":0},{"$f":"IF(P53>0,P53,SUM(P41:P52))","v":0},0,0,0,0,0,0,{"$f":"IF(W53>0,W53,SUM(W41:W52))","v":0},0,0,0,0,0,0,{"$f":"IF(AD53>0,AD53,\"-\")","v":"-"},{"$f":"IF(AE53>0,AE53,SUM(AE41:AE52))","v":0},0,0,0,0,0,0,{"$f":"IF(AL53>0,AL53,SUM(AL41:AL52))","v":0},0,0,0,0,0,0,{"$f":"IF(AS53>0,AS53,\"-\")","v":"-"},{"$f":"IF(AT53>0,AT53,SUM(AT41:AT52))","v":0},{"$f":"IF(AU53>0,AU53,SUM(AU41:AU52))","v":0},{"$f":"IF(AV53>0,AV53,SUM(AV41:AV52))","v":0},{"$f":"IF(AW53>0,AW53,SUM(AW41:AW52))","v":0},{"$f":"IF(AX53>0,AX53,SUM(AX41:AX52))","v":0}]
[]
[null,null,null,null,null,null,null,null,null,null,null,null,null,null,null,null,null,null,null,null,null,null,null,null,null,"Allmänt råd  (BEN 2, bostäder)"]
[null,null,null,null,null,null,null,null,null,null,null,null,null,null,null,null,null,null,null,null,null,null,null,null,null,"En icke försumbar påverkan innebär att byggnadens energianvändning för "]
[null,null,null,null,null,null,null,null,null,null,null,null,null,null,null,null,null,null,null,null,null,null,null,null,null,"uppvärmning och komfortkyla har påverkats mer än 3 kWh/m2 och år. "]
[null,null,null,null,null,null,null,null,null,null,null,null,null,null,null,null,null,null,null,null,null,null,null,null,null," Andelen av hushållsenergin som kommer byggnaden tillgodo som värme "]
[null,null,null,null,null,null,null,null,null,null,null,null,null,null,null,null,null,null,null,null,null,null,null,null,null,"under uppvärmningssäsongen kan antas till 70 procent.  "]
[null,null,null,null,null,null,null,null,null,null,null,null,null,null,null,null,null,null,null,null,null,null,null,null,null," Normal användning av hushållsenergi är 30 kWh/m2 Atemp år och kan an-"]
[null,null,null,null,null,null,null,null,null,null,null,null,null,null,null,null,null,null,null,null,null,null,null,null,null,"vändas som grund för normalisering av uppvärmningsenergi vid avvikande "]
[null,null,null,null,null,null,null,null,null,null,null,null,null,null,null,null,null,null,null,null,null,null,null,null,null,"användning av hushållsenergi enligt ",null,null,null,null,null," där "]
[null,null,null,null,null,null,null,null,null,null,null,null,null,null,null,null,null,null,null,null,null,null,null,null,null,null,null,null,null,null,null," Ekorr: Korrigering av energi till uppvärmning (kWh/år). "]
[null,null,null,null,null,null,null,null,null,null,null,null,null,null,null,null,null,null,null,null,null,null,null,null,null,null,null,null,null,null,null," Eh,avv: Positiv eller negativ skillnad mellan uppmätt värde och normal "]
[null,null,null,null,null,null,null,null,null,null,null,null,null,null,null,null,null,null,null,null,null,null,null,null,null,null,null,null,null,null,null,"användning av hushållsenergi (kWh/m2år). "]
[null,null,null,null,null,null,null,null,null,null,null,null,null,null,null,null,null,null,null,null,null,null,null,null,null,null,null,null,null,null,null," Ih: Andel av hushållsenergin som kommer byggnaden tillgodo som värme. "]
[null,null,null,null,null,null,null,null,null,null,null,null,null,null,null,null,null,null,null,null,null,null,null,null,null,null,null,null,null,null,null," tuppv: Uppvärmningssäsongens längd (h). "]
[null,null,null,null,null,null,null,null,null,null,null,null,null,null,null,null,null,null,null,null,null,null,null,null,null,null,null,null,null,null,null," ηuppv: Årsverkningsgrad hos värmekällan för uppvärmning. "]
[null,null,null,null,null,null,null,null,null,null,null,null,null,null,null,null,null,null,null,null,null,null,null,null,null,null,null,null,null,null,null,"(BFS 2017:6). "]

{"sheet":"C3. Normaliseringsunderlag","index":9,"n_rows":87,"n_cols":10,"rows_kept":87,"cut":false,"hidden":false,"merged":[[21,9,21,10],[7,7,8,7],[35,7,36,7],[7,8,7,10],[8,8,8,10],[9,8,9,10],[10,8,10,10],[11,8,11,10],[17,8,17,10],[12,8,12,10],[13,8,13,10],[14,8,14,10],[15,8,15,10],[16,8,16,10],[38,8,38,10],[40,8,40,10],[27,9,27,10],[28,9,28,10],[29,9,29,10],[30,9,30,10],[35,8,35,10],[36,8,36,10],[39,8,39,10],[43,8,43,10],[44,8,44,10],[45,8,45,10],[63,8,63,10],[21,8,22,8],[49,8,50,8],[26,9,26,10],[22,9,22,10],[41,8,41,10],[42,8,42,10],[23,9,23,10],[24,9,24,10],[25,9,25,10],[37,8,37,10],[49,9,51,10],[52,9,52,10],[71,8,71,10],[67,8,67,10],[64,8,64,10],[65,8,65,10],[73,8,73,10],[72,8,72,10],[68,8,68,10],[66,8,66,10],[69,8,69,10],[70,8,70,10],[7,1,8,1],[7,2,8,2],[7,3,8,3],[7,4,8,4],[7,5,8,5],[21,3,22,3],[21,4,22,4],[21,5,22,5],[21,7,22,7],[21,1,22,2],[35,1,36,1],[35,2,36,2],[35,3,36,3],[35,4,36,4],[35,5,36,5],[49,3,50,3],[49,4,50,4],[49,5,50,5],[49,7,50,7],[49,1,50,2],[51,1,51,2],[63,1,64,1],[63,2,64,2],[63,3,64,3],[63,4,64,4],[77,1,78,2],[79,1,79,2],[3,3,3,5],[83,9,83,10],[84,9,84,10],[56,9,56,10],[57,9,57,10],[58,9,58,10],[63,7,64,7],[53,9,53,10],[55,9,55,10],[63,5,64,5],[77,3,78,3],[77,4,78,4],[77,5,78,5],[77,7,78,7],[85,9,85,10],[86,9,86,10],[77,8,78,8],[77,9,79,10],[80,9,80,10],[81,9,81,10],[82,9,82,10]]}
[]
[null,null,"Verifieringsunderlag för upprepad energiberäkning"]
[null,null,"Använd denna sida för att dokumentera brukarindata (tabell 1) och utdata vid normalisering med upprepad energiberäkning enligt BEN (tabell 2). Korrigeringsdivisorerna räknas ut i tabell 2."]
[null,null,"Byggnad, adress:",{"$f":"'A. Byggnadsinfo med BBR'!C9","v":0}]
[null,"Före åtgärd"]
[null,"Tabell 1. Dokumenterande underlag för korrigering av avvikelser i brukande "]
[]
[null,"Indatavärden","Enhet","Beräknad brukarindata","Uppmätt brukarindata","Avvikelse brukarindata",null,"Icke försumbar avvikelse","Anm."]
[]
[null,"Tappvarmvatten","kWh/m2Atemp",null,null,{"$f":"E10-D10","v":0},null,">±3"]
[null,"Innetemperatur, vinter","°C",null,null,{"$f":"E11-D11","v":0},null,">±1,0"]
[null,"Innetemperatur, sommar","°C",null,null,0,null,">±1,0"]
[null,"Drifttider, vardagar","h",null,null,0]
[null,"Drifttider, helger","h",null,null,0]
[null,"Luftflöden, närvaro","l/s,m2Atemp",null,null,0]
[null,"Luftflöden ej närvaro","l/s,m2Atemp",null,null,0]
[null,"Verksamhets-/Hushållsenergi","kWh/m2Atemp",null,null,0,null,">±3 "]
[null,"Övrigt, ange",null,null,null,0]
[]
[null,"Tabell 2. Resultat för korrigering vid beräkning med upprepad dynamisk energiberäkning"]
[]
[null,"Energiprestandapåverkan utdata",null,"Beräknat enl. relationshandling","Beräknat för år 1","Korrigerings-divisor",null,{"$f":"D22","v":"Beräknat enl. relationshandling"},{"$f":"E22","v":"Beräknat för år 1"},"Anm."]
[]
[null,null,null,"kWh","kWh","-",null,"kWh/m2 Atemp","kWh/m2 Atemp"]
[null,null,"Uppvärmning exkl TVV och VVC",{"$f":"'B1. Resultat beräkning'!D5-'B1. Resultat beräkning'!D6","v":0},null,{"$f":"IF(D25>0,E25/D25,1)","v":1},null,{"$f":"IFERROR(D25/'A. Byggnadsinfo med BBR'!$E$43,0)","v":0},{"$f":"IFERROR(E25/'A. Byggnadsinfo med BBR'!$E$43,0)","v":0}]
[null,null,"Tappvarmvatten",{"$f":"'B1. Resultat beräkning'!D11","v":0},null,1,null,{"$f":"IFERROR(D26/'A. Byggnadsinfo med BBR'!$E$43,0)","v":0},{"$f":"IFERROR(E26/'A. Byggnadsinfo med BBR'!$E$43,0)","v":0}]
[null,null,"VVC-förluster",{"$f":"'B1. Resultat beräkning'!D6","v":0},null,1,null,{"$f":"IFERROR(D27/'A. Byggnadsinfo med BBR'!$E$43,0)","v":0},{"$f":"IFERROR(E27/'A. Byggnadsinfo med BBR'!$E$43,0)","v":0}]
[null,null,"Elkyla",{"$f":"'B1. Resultat beräkning'!D12","v":0},null,1,null,{"$f":"IFERROR(D28/'A. Byggnadsinfo med BBR'!$E$43,0)","v":0},{"$f":"IFERROR(E28/'A. Byggnadsinfo med BBR'!$E$43,0)","v":0}]
[null,null,"Fjärrkyla",{"$f":"'B1. Resultat beräkning'!D14","v":0},null,1,null,{"$f":"IFERROR(D29/'A. Byggnadsinfo med BBR'!$E$43,0)","v":0},{"$f":"IFERROR(E29/'A. Byggnadsinfo med BBR'!$E$43,0)","v":0}]
[null,null,"Driftel exkl värme och kyla",{"$f":"'B1. Resultat beräkning'!D16","v":0},null,1,null,{"$f":"IFERROR(D30/'A. Byggnadsinfo med BBR'!$E$43,0)","v":0},{"$f":"IFERROR(E30/'A. Byggnadsinfo med BBR'!$E$43,0)","v":0}]
[null,null,"Verksamhets-/Hushållsenergi",{"$f":"'B1. Resultat beräkning'!D21","v":0},null,1,null,{"$f":"IFERROR(D31/'A. Byggnadsinfo med BBR'!$E$43,0)","v":0},{"$f":"IFERROR(E31/'A. Byggnadsinfo med BBR'!$E$43,0)","v":0}]
[]
[null,"Efter renovering"]
[null,{"$f":"B6","v":"Tabell 1. Dokumenterande underlag för korrigering av avvikelser i brukande "}]
[]
[null,{"$f":"B8","v":"Indatavärden"},{"$f":"C8","v":"Enhet"},{"$f":"D8","v":"Beräknad brukarindata"},{"$f":"E8","v":"Uppmätt brukarindata"},{"$f":"F8","v":"Avvikelse brukarindata"},null,{"$f":"H8","v":"Icke försumbar avvikelse"},{"$f":"I8","v":"Anm."}]
[]
[null,"Tappvarmvatten","kWh/m2Atemp",null,null,{"$f":"E38-D38","v":0},null,">±3"]
[null,"Innetemperatur, vinter","°C",null,null,{"$f":"E39-D39","v":0},null,">±1,0"]
[null,"Innetemperatur, sommar","°C",null,null,0,null,">±1,0"]
[null,"Drifttider, vardagar","h",null,null,0]
[null,"Drifttider, helger","h",null,null,0]
[null,"Luftflöden, närvaro","l/s,m2Atemp",null,null,0]
[null,"Luftflöden ej närvaro","l/s,m2Atemp",null,null,0]
[null,"Verksamhets-/Hushållsenergi","kWh/m2Atemp",null,null,0,null,">±3 "]
[null,"Övrigt, ange",null,null,null,0]
[]
[null,{"$f":"B20","v":"Tabell 2. Resultat för korrigering vid beräkning med upprepad dynamisk energiberäkning"}]
[]
[null,{"$f":"B22","v":"Energiprestandapåverkan utdata"},null,"Beräknat efter renovering","Beräknat efter renovering ",{"$f":"F22","v":"Korrigerings-divisor"},null,{"$f":"D50","v":"Beräknat efter renovering"},{"$f":"E50","v":"Beräknat efter renovering "},{"$f":"J22","v":"Anm."}]
[]
[null,null,null,"kWh","kWh","kWh",null,"kWh/m2 Atemp","kWh/m2 Atemp"]
[null,null,{"$f":"C25","v":"Uppvärmning exkl TVV och VVC"},{"$f":"'B1. Resultat beräkning'!F5-'B1. Resultat beräkning'!F6","v":0},null,{"$f":"IF(D53>0,E53/D53,1)","v":1},null,{"$f":"IFERROR(D53/'A. Byggnadsinfo med BBR'!$E$43,0)","v":0},{"$f":"IFERROR(E53/'A. Byggnadsinfo med BBR'!$E$43,0)","v":0}]
[null,null,{"$f":"C26","v":"Tappvarmvatten"},{"$f":"'B1. Resultat beräkning'!F11","v":0},null,{"$f":"IF(D54>0,E54/D54,1)","v":1},null,{"$f":"IFERROR(D54/'A. Byggnadsinfo med BBR'!$E$43,0)","v":0},{"$f":"IFERROR(E54/'A. Byggnadsinfo med BBR'!$E$43,0)","v":0}]
[null,null,"VVC-förluster",{"$f":"'B1. Resultat beräkning'!F6","v":0},null,1,null,{"$f":"IFERROR(D55/'A. Byggnadsinfo med BBR'!$E$43,0)","v":0},{"$f":"IFERROR(E55/'A. Byggnadsinfo med BBR'!$E$43,0)","v":0}]
[null,null,"Elkyla",{"$f":"'B1. Resultat beräkning'!F12","v":0},null,1,null,{"$f":"IFERROR(D56/'A. Byggnadsinfo med BBR'!$E$43,0)","v":0},{"$f":"IFERROR(E56/'A. Byggnadsinfo med BBR'!$E$43,0)","v":0}]
[null,null,"Fjärrkyla",{"$f":"'B1. Resultat beräkning'!F14","v":0},null,1,null,{"$f":"IFERROR(D57/'A. Byggnadsinfo med BBR'!$E$43,0)","v":0},{"$f":"IFERROR(E57/'A. Byggnadsinfo med BBR'!$E$43,0)","v":0}]
[null,null,"Driftel exkl värme och kyla",{"$f":"'B1. Resultat beräkning'!F16","v":0},null,1,null,{"$f":"IFERROR(D58/'A. Byggnadsinfo med BBR'!$E$43,0)","v":0},{"$f":"IFERROR(E58/'A. Byggnadsinfo med BBR'!$E$43,0)","v":0}]
[null,null,"Verksamhets-/Hushållsenergi",{"$f":"'B1. Resultat beräkning'!F21","v":0},null,1,null,{"$f":"IFERROR(D59/'A. Byggnadsinfo med BBR'!$E$43,0)","v":0},{"$f":"IFERROR(E59/'A. Byggnadsinfo med BBR'!$E$43,0)","v":0}]
[]
[null,"Efter renovering år 2"]
[null,{"$f":"B6","v":"Tabell 1. Dokumenterande underlag för korrigering av avvikelser i brukande "}]
[]
[null,{"$f":"B8","v":"Indatavärden"},{"$f":"C8","v":"Enhet"},{"$f":"D8","v":"Beräknad brukarindata"},{"$f":"E8","v":"Uppmätt brukarindata"},{"$f":"F8","v":"Avvikelse brukarindata"},null,{"$f":"H8","v":"Icke försumbar avvikelse"},"Anm."]
[]
[null,"Tappvarmvatten","kWh/m2Atemp",null,null,{"$f":"E66-D66","v":0},null,">±3"]
[null,"Innetemperatur, vinter","°C",null,null,{"$f":"E67-D67","v":0},null,">±1,0"]
[null,"Innetemperatur, sommar","°C",null,null,0,null,">±1,0"]
[null,"Drifttider, vardagar","h",null,null,0]
[null,"Drifttider, helger","h",null,null,0]
[null,"Luftflöden, närvaro","l/s,m2Atemp",null,null,0]
[null,"Luftflöden ej närvaro","l/s,m2Atemp",null,null,0]
[null,"Verksamhets-/Hushållsenergi","kWh/m2Atemp",null,null,0,null,">±3 "]
[null,"Övrigt, ange",null,null,null,0]
[]
[null,{"$f":"B20","v":"Tabell 2. Resultat för korrigering vid beräkning med upprepad dynamisk energiberäkning"}]
[]
[null,{"$f":"B22","v":"Energiprestandapåverkan utdata"},null,{"$f":"D50","v":"Beräknat efter renovering"},"Beräknat efter åtgärd, år 2",{"$f":"F22","v":"Korrigerings-divisor"},null,{"$f":"D78","v":"Beräknat efter renovering"},{"$f":"E78","v":"Beräknat efter åtgärd, år 2"},"Anm."]
[]
[null,null,null,"kWh","kWh","kWh",null,"kWh/m2 Atemp","kWh/m2 Atemp"]
[null,null,{"$f":"C25","v":"Uppvärmning exkl TVV och VVC"},{"$f":"D53","v":0},null,{"$f":"IF(D81>0,E81/D81,1)","v":1},null,{"$f":"IFERROR(D81/'A. Byggnadsinfo med BBR'!$E$43,0)","v":0},{"$f":"IFERROR(E81/'A. Byggnadsinfo med BBR'!$E$43,0)","v":0}]
[null,null,{"$f":"C26","v":"Tappvarmvatten"},{"$f":"D54","v":0},null,{"$f":"IF(D82>0,E82/D82,1)","v":1},null,{"$f":"IFERROR(D82/'A. Byggnadsinfo med BBR'!$E$43,0)","v":0},{"$f":"IFERROR(E82/'A. Byggnadsinfo med BBR'!$E$43,0)","v":0}]
[null,null,"VVC-förluster",0,null,1,null,{"$f":"IFERROR(D83/'A. Byggnadsinfo med BBR'!$E$43,0)","v":0},{"$f":"IFERROR(E83/'A. Byggnadsinfo med BBR'!$E$43,0)","v":0}]
[null,null,"Elkyla",0,null,1,null,{"$f":"IFERROR(D84/'A. Byggnadsinfo med BBR'!$E$43,0)","v":0},{"$f":"IFERROR(E84/'A. Byggnadsinfo med BBR'!$E$43,0)","v":0}]
[null,null,"Fjärrkyla",0,null,1,null,{"$f":"IFERROR(D85/'A. Byggnadsinfo med BBR'!$E$43,0)","v":0},{"$f":"IFERROR(E85/'A. Byggnadsinfo med BBR'!$E$43,0)","v":0}]
[null,null,"Driftel exkl värme och kyla",0,null,1,null,{"$f":"IFERROR(D86/'A. Byggnadsinfo med BBR'!$E$43,0)","v":0},{"$f":"IFERROR(E86/'A. Byggnadsinfo med BBR'!$E$43,0)","v":0}]
[null,null,"Verksamhets-/Hushållsenergi",0,null,1,null,{"$f":"IFERROR(D87/'A. Byggnadsinfo med BBR'!$E$43,0)","v":0},{"$f":"IFERROR(E87/'A. Byggnadsinfo med BBR'!$E$43,0)","v":0}]

{"sheet":"C4. Underlag-mätplan","index":10,"n_rows":27,"n_cols":9,"rows_kept":27,"cut":false,"hidden":false,"merged":[[34,8,34,10],[35,8,35,10],[36,8,36,10],[37,8,37,10],[3,3,3,4],[11,7,11,10],[12,7,12,10],[15,7,15,10],[16,7,16,10],[6,7,6,10],[28,8,28,10],[29,8,29,10],[30,8,30,10],[31,8,31,10],[32,8,32,10],[33,8,33,10],[27,8,27,10],[20,7,20,10],[21,7,21,10],[17,7,17,10],[22,7,22,10],[23,7,23,10],[18,7,18,10],[19,7,19,10],[7,7,7,10],[8,7,8,10],[9,7,9,10],[10,7,10,10],[26,8,26,10]]}
[]
[null,null,"Mätplan - underlag för dokumentation"]
[]
[null,null,"Byggnad, adress:",{"$f":"'A. Byggnadsinfo med BBR'!C9","v":0}]
[]
[null,"Mätare för värme och tappvarmvatten"]
[null,"Mätartyp","Placering ","ID nr","Betjäningsområde","Mätenhet","Mätt/Fördelat M/F","Anm."]
[]
[]
[]
[]
[]
[]
[]
[null,"Mätare för kyla"]
[null,"Mätartyp","Placering","ID nr","Betjäningsområde","Mätenhet","Mätt/Fördelat M/F","Anm."]
[]
[]
[]
[]
[]
[]
[]
[]
[]
[null,"Mätare för el"]
[null,"Mätartyp","Placering","ID nr","Betjäningsområde","Mätenhet","Mätarkonstant","Mätt/Fördelat M/F","Anm."]

{"sheet":"Fgeo","index":11,"n_rows":292,"n_cols":9,"rows_kept":292,"cut":false,"hidden":true,"merged":[]}
[]
["KOMMUNNAMN","Fgeo",null,null,"Välj källa",null,"Värmepumpskälla"]
["Ale",1,null,null,"Biobränsle",null,"Frånluft"]
["Alingsås",1,null,null,"Olja",null,"Uteluft"]
["Alvesta",1,null,null,"Naturgas",null,"Berg"]
["Aneby",1,null,null,"El",null,"Mark"]
["Arboga",1,null,null,null,null,"Sjö"]
["Arjeplog",1.7]
["Arvidsjaur",1.6]
["Arvika",1.1000000000000001]
["Askersund",1.1000000000000001]
["Avesta",1.1000000000000001]
["Bengtsfors",1,null,null,null,null,null,"Energibärare:"]
["Berg",1.4]
["Bjurholm",1.4]
["Bjuv",0.9]
["Boden",1.5]
["Bollebygd",1,null,null,"Byggnadskategori",null,"En- och tvåbostadshus","Flerbostadshus","Lokal"]
["Bollnäs",1.2,null,null,"Byggnadskomplexitet",null,"Enkel","Komplex"]
["Borgholm",0.9,null,null,"Byggnadstyp",null,"Friliggande","Sammanbyggd"]
["Borlänge",1.2,null,null,"BBRversion",null,29,25]
["Borås",1]
["Botkyrka",1]
["Boxholm",1]
["Bromölla",0.9]
["Bräcke",1.4]
["Burlöv",0.9]
["Båstad",0.9]
["Dals-Ed",1]
["Danderyd",1]
["Degerfors",1.1000000000000001]
["Dorotea",1.5]
["Eda",1.1000000000000001]
["Ekerö",1]
["Eksjö",1.1000000000000001]
["Emmaboda",0.9]
["Enköping",1]
["Eskilstuna",1]
["Eslöv",0.9]
["Essunga",1]
["Fagersta",1.1000000000000001]
["Falkenberg",0.9]
["Falköping",1]
["Falun",1.2]
["Filipstad",1.1000000000000001]
["Finspång",1]
["Flen",1]
["Forshaga",1.1000000000000001]
["Färgelanda",1]
["Gagnef",1.2]
["Gislaved",1]
["Gnesta",1]
["Gnosjö",1]
["Gotland",0.9]
["Grums",1]
["Grästorp",1]
["Gullspång",1]
["Gällivare",1.9]
["Gävle",1.1000000000000001]
["Göteborg",0.9]
["Götene",1]
["Habo",1]
["Hagfors",1.2]
["Hallsberg",1]
["Hallstahammar",1]
["Halmstad",0.9]
["Hammarö",1.1000000000000001]
["Haninge",1]
["Haparanda",1.5]
["Heby",1.1000000000000001]
["Hedemora",1.1000000000000001]
["Helsingborg",0.9]
["Herrljunga",1]
["Hjo",1]
["Hofors",1.2]
["Huddinge",1]
["Hudiksvall",1.2]
["Hultsfred",1]
["Hylte",1]
["Håbo",1]
["Hällefors",1.1000000000000001]
["Härjedalen",1.5]
["Härnösand",1.3]
["Härryda",0.9]
["Hässleholm",0.9]
["Höganäs",0.8]
["Högsby",1]
["Hörby",0.9]
["Höör",0.9]
["Jokkmokk",1.8]
["Järfälla",1]
["Jönköping",1]
["Kalix",1.5]
["Kalmar",0.9]
["Karlsborg",1]
["Karlshamn",0.9]
["Karlskoga",1.1000000000000001]
["Karlskrona",0.9]
["Karlstad",1.1000000000000001]
["Katrineholm",1]
["Kil",1.1000000000000001]
["Kinda",1]
["Kiruna",1.9]
["Klippan",0.9]
["Knivsta",1]
["Kramfors",1.3]
["Kristianstad",0.9]
["Kristinehamn",1.1000000000000001]
["Krokom",1.5]
["Kumla",1]
["Kungsbacka",0.9]
["Kungsör",1]
["Kungälv",0.9]
["Kävlinge",0.9]
["Köping",1]
["Laholm",0.9]
["Landskrona",0.8]
["Laxå",1]
["Lekeberg",1]
["Leksand",1.2]
["Lerum",0.9]
["Lessebo",1]
["Lidingö",1]
["Lidköping",1]
["Lilla Edet",1]
["Lindesberg",1.1000000000000001]
["Linköping",1]
["Ljungby",1]
["Ljusdal",1.3]
["Ljusnarsberg",1.2]
["Lomma",0.8]
["Ludvika",1.2]
["Luleå",1.5]
["Lund",0.9]
["Lycksele",1.5]
["Lysekil",0.9]
["Malmö",0.8]
["Malung",1.4]
["Malå",1.6]
["Mariestad",1]
["Mark",1]
["Markaryd",1]
["Mellerud",1]
["Mjölby",1]
["Mora",1.2]
["Motala",1]
["Mullsjö",1]
["Munkedal",1]
["Munkfors",1.1000000000000001]
["Mölndal",0.9]
["Mönsterås",0.9]
["Mörbylånga",0.9]
["Nacka",1]
["Nora",1.1000000000000001]
["Norberg",1.1000000000000001]
["Nordanstig",1.2]
["Nordmaling",1.3]
["Norrköping",1]
["Norrtälje",1]
["Norsjö",1.6]
["Nybro",0.9]
["Nykvarn",1]
["Nyköping",1]
["Nynäshamn",1]
["Nässjö",1.1000000000000001]
["Ockelbo",1.1000000000000001]
["Olofström",0.9]
["Orsa",1.2]
["Orust",0.9]
["Osby",1]
["Oskarshamn",0.9]
["Ovanåker",1.3]
["Oxelösund",1]
["Pajala",1.7]
["Partille",0.9]
["Perstorp",0.9]
["Piteå",1.4]
["Ragunda",1.4]
["Robertsfors",1.4]
["Ronneby",0.9]
["Rättvik",1.2]
["Sala",1.1000000000000001]
["Salem",1]
["Sandviken",1.1000000000000001]
["Sigtuna",1]
["Simrishamn",0.9]
["Sjöbo",0.9]
["Skara",1]
["Skellefteå",1.4]
["Skinnskatteberg",1.1000000000000001]
["Skurup",0.9]
["Skövde",1]
["Smedjebacken",1.2]
["Sollefteå",1.4]
["Sollentuna",1]
["Solna",1]
["Sorsele",1.7]
["Sotenäs",0.9]
["Staffanstorp",0.9]
["Stenungsund",0.9]
["Stockholm",1]
["Storfors",1.1000000000000001]
["Storuman",1.8]
["Strängnäs",1]
["Strömstad",0.9]
["Strömsund",1.5]
["Sundbyberg",1]
["Sundsvall",1.3]
["Sunne",1.1000000000000001]
["Surahammar",1]
["Svalöv",0.9]
["Svedala",0.9]
["Svenljunga",1]
["Säffle",1]
["Säter",1.1000000000000001]
["Sävsjö",1.1000000000000001]
["Söderhamn",1.2]
["Söderköping",1]
["Södertälje",1]
["Sölvesborg",0.9]
["Tanum",0.9]
["Tibro",1]
["Tidaholm",1]
["Tierp",1.1000000000000001]
["Timrå",1.3]
["Tingsryd",1]
["Tjörn",0.9]
["Tomelilla",0.9]
["Torsby",1.2]
["Torsås",0.9]
["Tranemo",1.1000000000000001]
["Tranås",1]
["Trelleborg",0.9]
["Trollhättan",1]
["Trosa",1]
["Tyresö",1]
["Täby",1]
["Töreboda",1]
["Uddevalla",0.9]
["Ulricehamn",1.1000000000000001]
["Umeå",1.3]
["Upplands-Bro",1]
["Upplands Väsby",1]
["Uppsala",1]
["Uppvidinge",1]
["Vadstena",1]
["Vaggeryd",1]
["Valdemarsvik",1]
["Vallentuna",1]
["Vansbro",1.2]
["Vara",1]
["Varberg",0.9]
["Vaxholm",1]
["Vellinge",0.8]
["Vetlanda",1]
["Vilhelmina",1.6]
["Vimmerby",1]
["Vindeln",1.5]
["Vingåker",1]
["Vårgårda",1]
["Vänersborg",1]
["Vännäs",1.4]
["Värmdö",1]
["Värnamo",1]
["Västervik",0.9]
["Västerås",1]
["Växjö",1]
["Ydre",1]
["Ystad",0.9]
["Åmål",1]
["Ånge",1.4]
["Åre",1.6]
["Årjäng",1.1000000000000001]
["Åsele",1.5]
["Åstorp",0.9]
["Åtvidaberg",1]
["Älmhult",1]
["Älvdalen",1.4]
["Älvkarleby",1.1000000000000001]
["Älvsbyn",1.5]
["Ängelholm",0.9]
["Öckerö",0.9]
["Ödeshög",1]
["Örebro",1]
["Örkelljunga",1]
["Örnsköldsvik",1.3]
["Östersund",1.4]
["Österåker",1]
["Östhammar",1.1000000000000001]
["Östra Göinge",0.9]
["Överkalix",1.6]
["Övertorneå",1.6]